Workbook

Sheet Factsheet
B2: Factsheet (nonfinancials) | AB2: Date: | AC2: =IF(AF2="",_xll.ECONOMATICA("IBOV","Date of Last Quote"),AF2) -> 2020-08-06
B4: AMXL<XMEX> | AD4: =IFERROR(UPPER(_xll.ECONOMATICA($B$4,"name")&" "&_xll.ECONOMATICA($B$4,"class")&" | NAICS SECTOR: "&_xll.ECONOMATICA($B$4,"SECTOR NAICS")),"") -> AMERICA MOVIL L | NAICS SECTOR: TELECOMUNICACIONES
B6: MARKET HIGHLIGHTS | I6: Thousands | L6: RETURNS TABLE
E7: =AC2 -> 2020-08-06 | G7: =IFERROR(DATE(YEAR($E$7)-1,12,31),"") -> 2019-12-31 | I7: =IFERROR(DATE(YEAR($E$7)-2,12,31),"") -> 2018-12-31 | O7: 1D | Q7: 1M | S7: 6M | U7: 12M | W7: 24M | Y7: 36M | AA7: 48M | AC7: 60M
B8: Close | E8: =IFERROR(_xll.ECONOMATICA($B$4,"close",,E$7,,,,,,,,{"tc.pers=3"}),"") -> 14.17 | G8: =IFERROR(_xll.ECONOMATICA($B$4,"close",,G$7,,,,,,,,{"tc.pers=3"}),"") -> 14.90680135 | I8: =IFERROR(_xll.ECONOMATICA($B$4,"close",,I$7,,,,,,,,{"tc.pers=3"}),"") -> 13.46517497 | L8: Return | O8: =IFERROR(_xll.ECONOMATICA($B$4,"RETURN",O$7,$AC$2,,,,"decimal"),"") -> 0.01214285714 | Q8: =IFERROR(_xll.ECONOMATICA($B$4,"RETURN",Q$7,$AC$2,,,,"decimal"),"") -> -0.05193861386 | S8: =IFERROR(_xll.ECONOMATICA($B$4,"RETURN",S$7,$AC$2,,,,"decimal"),"") -> -0.08575481617 | U8: =IFERROR(_xll.ECONOMATICA($B$4,"RETURN",U$7,$AC$2,,,,"decimal"),"") -> 0.0847513207 | W8: =IFERROR(_xll.ECONOMATICA($B$4,"RETURN",W$7,$AC$2,,,,"decimal"),"") -> -0.05500697599 | Y8: =IFERROR(_xll.ECONOMATICA($B$4,"RETURN",Y$7,$AC$2,,,,"decimal"),"") -> -0.03140335299 | AA8: =IFERROR(_xll.ECONOMATICA($B$4,"RETURN",AA$7,$AC$2,,,,"decimal"),"") -> 0.4732859524 | AC8: =IFERROR(_xll.ECONOMATICA($B$4,"RETURN",AC$7,$AC$2,,,,"decimal"),"") -> 0.04747264654
B9: High | E9: =IFERROR(_xll.ECONOMATICA($B$4,"High","in the year",E$7,,,),"") -> 16.60479461 | G9: =IFERROR(_xll.ECONOMATICA($B$4,"High","in the year",G$7,,,),"") -> 15.38649721 | I9: =IFERROR(_xll.ECONOMATICA($B$4,"High","in the year",I$7,,,),"") -> 17.19759716 | L9: Benchmark (S&P 500) | O9: =IFERROR(_xll.ECONOMATICA("S&P 500","RETURN",O7,$AC$2,,,,"decimal"),"") -> 0.006427727878 | Q9: =IFERROR(_xll.ECONOMATICA("S&P 500","RETURN",Q7,$AC$2,,,,"decimal"),"") -> 0.05328771087 | S9: =IFERROR(_xll.ECONOMATICA("S&P 500","RETURN",S7,$AC$2,,,,"decimal"),"") -> 0.001010227808 | U9: =IFERROR(_xll.ECONOMATICA("S&P 500","RETURN",U7,$AC$2,,,,"decimal"),"") -> 0.1621885161 | W9: =IFERROR(_xll.ECONOMATICA("S&P 500","RETURN",W7,$AC$2,,,,"decimal"),"") -> 0.1749789503 | Y9: =IFERROR(_xll.ECONOMATICA("S&P 500","RETURN",Y7,$AC$2,,,,"decimal"),"") -> 0.352196154 | AA9: =IFERROR(_xll.ECONOMATICA("S&P 500","RETURN",AA7,$AC$2,,,,"decimal"),"") -> 0.5342920101 | AC9: =IFERROR(_xll.ECONOMATICA("S&P 500","RETURN",AC7,$AC$2,,,,"decimal"),"") -> 0.6074219125
B10: Low | E10: =IFERROR(_xll.ECONOMATICA($B$4,"Low","in the year",E$7),"") -> 12.17224242 | G10: =IFERROR(_xll.ECONOMATICA($B$4,"Low","in the year",G$7),"") -> 12.37600906 | I10: =IFERROR(_xll.ECONOMATICA($B$4,"Low","in the year",I$7),"") -> 11.87479997 | L10: Difference Benchmark (bps) | O10: =IFERROR(O8-O9,"") -> 0.005715129264 | Q10: =IFERROR(Q8-Q9,"") -> -0.1052263247 | S10: =IFERROR(S8-S9,"") -> -0.08676504398 | U10: =IFERROR(U8-U9,"") -> -0.07743719539 | W10: =IFERROR(W8-W9,"") -> -0.2299859263 | Y10: =IFERROR(Y8-Y9,"") -> -0.3835995069 | AA10: =IFERROR(AA8-AA9,"") -> -0.06100605763 | AC10: =IFERROR(AC8-AC9,"") -> -0.559949266
B11: Return | E11: =IFERROR(_xll.ECONOMATICA($B$4,"return","in the year",E$7,,,,"decimal"),"") -> -0.04942719297 | G11: =IFERROR(_xll.ECONOMATICA($B$4,"return","in the year",G$7,,,,"decimal"),"") -> 0.107063323 | I11: =IFERROR(_xll.ECONOMATICA($B$4,"return","in the year",I$7,,,,"decimal"),"") -> -0.1592905777 | L11: Volatility | O11: =IFERROR(_xll.ECONOMATICA($B$4,"volatility",O7,$AC$2,,,,"decimal"),"") -> 0 | Q11: =IFERROR(_xll.ECONOMATICA($B$4,"volatility",Q7,$AC$2,,,,"decimal"),"") -> 0.3052843021 | S11: =IFERROR(_xll.ECONOMATICA($B$4,"volatility",S7,$AC$2,,,,"decimal"),"") -> 0.3870912683 | U11: =IFERROR(_xll.ECONOMATICA($B$4,"volatility",U7,$AC$2,,,,"decimal"),"") -> 0.3132295149 | W11: =IFERROR(_xll.ECONOMATICA($B$4,"volatility",W7,$AC$2,,,,"decimal"),"") -> 0.2903291787 | Y11: =IFERROR(_xll.ECONOMATICA($B$4,"volatility",Y7,$AC$2,,,,"decimal"),"") -> 0.2609716914 | AA11: =IFERROR(_xll.ECONOMATICA($B$4,"volatility",AA7,$AC$2,,,,"decimal"),"") -> 0.2567997239 | AC11: =IFERROR(_xll.ECONOMATICA($B$4,"volatility",AC7,$AC$2,,,,"decimal"),"") -> 0.2619087343
B12: Avg Volume | E12: =IFERROR(_xll.ECONOMATICA($B$4,"Hist Average","in the year",E7,,,,$I$6,,,,{"std.tec.cals=7"}),"") -> 698767.088 | G12: =IFERROR(_xll.ECONOMATICA($B$4,"Hist Average","in the year",G7,,,,$I$6,,,,{"std.tec.cals=7"}),"") -> 580946.0159 | I12: =IFERROR(_xll.ECONOMATICA($B$4,"Hist Average","in the year",I7,,,,$I$6,,,,{"std.tec.cals=7"}),"") -> 703437.379 | L12: Sharpe | O12: =IFERROR(_xll.ECONOMATICA($B$4,"sharpe",O7,$AC$2,,,),"") ->  | Q12: =IFERROR(_xll.ECONOMATICA($B$4,"sharpe",Q7,$AC$2,,,),"") ->  | S12: =IFERROR(_xll.ECONOMATICA($B$4,"sharpe",S7,$AC$2,,,),"") ->  | U12: =IFERROR(_xll.ECONOMATICA($B$4,"sharpe",U7,$AC$2,,,),"") ->  | W12: =IFERROR(_xll.ECONOMATICA($B$4,"sharpe",W7,$AC$2,,,),"") ->  | Y12: =IFERROR(_xll.ECONOMATICA($B$4,"sharpe",Y7,$AC$2,,,),"") ->  | AA12: =IFERROR(_xll.ECONOMATICA($B$4,"sharpe",AA7,$AC$2,,,),"") ->  | AC12: =IFERROR(_xll.ECONOMATICA($B$4,"sharpe",AC7,$AC$2,,,),"") -> 
B14: Market Cap | E14: =IFERROR(_xll.ECONOMATICA($B$4,"MarketCapitaliz",,E$7,,,,$I$6),"") -> 942218039.3 | G14: =IFERROR(_xll.ECONOMATICA($B$4,"MarketCapitaliz",,G$7,,,,$I$6),"") -> 996769756.6 | I14: =IFERROR(_xll.ECONOMATICA($B$4,"MarketCapitaliz",,I$7,,,,$I$6),"") -> 922740880.2 | L14: GRAPH BASE 100 | AB14: Years: | AC14: 12M
B16: EV | E16: =IFERROR(_xll.ECONOMATICA($B$4,"EV",,E$7,,,,$I$6),"") -> 1688580457 | G16: =IFERROR(_xll.ECONOMATICA($B$4,"EV",,G$7,,,,$I$6),"") -> 1650275484 | I16: =IFERROR(_xll.ECONOMATICA($B$4,"EV",,I$7,,,,$I$6),"") -> 1589880148
B17: P/B | E17: =IFERROR(_xll.ECONOMATICA($B$4,"P/BV",,E$7,,,),"") -> 5.761165648 | G17: =IFERROR(_xll.ECONOMATICA($B$4,"P/BV",,G$7,,,),"") -> 5.602067751 | I17: =IFERROR(_xll.ECONOMATICA($B$4,"P/BV",,I$7,,,),"") -> 4.70676811
B18: Dividend Yield | E18: =IFERROR(_xll.ECONOMATICA($B$4,"Div Yld (start)","12M",E$7,,,,"decimal"),"") -> 0.0269058296 | G18: =IFERROR(_xll.ECONOMATICA($B$4,"Div Yld (start)","12M",G$7,,,,"decimal"),"") -> 0.02505368647 | I18: =IFERROR(_xll.ECONOMATICA($B$4,"Div Yld (start)","12M",I$7,,,,"decimal"),"") -> 0.01887905605
B19: Dividend p/share | E19: =IFERROR(_xll.ECONOMATICA($B$4,"Divid per Share","12M",E$7,,,),"") -> 0.36 | G19: =IFERROR(_xll.ECONOMATICA($B$4,"Divid per Share","12M",G$7,,,),"") -> 0.35 | I19: =IFERROR(_xll.ECONOMATICA($B$4,"Divid per Share","12M",I$7,,,),"") -> 0.32
B21: Beta | E21: =IFERROR(_xll.ECONOMATICA($B$4,"beta","in the year",E$7,,,,,,,,{"jtc.per=0"}),"") -> 1.017124124 | G21: =IFERROR(_xll.ECONOMATICA($B$4,"beta","in the year",G$7,,,,,,,,{"jtc.per=0"}),"") -> 1.278949395 | I21: =IFERROR(_xll.ECONOMATICA($B$4,"beta","in the year",I$7,,,,,,,,{"jtc.per=0"}),"") -> 1.031769142
B22: Correlation | E22: =IFERROR(_xll.ECONOMATICA($B$4,"Correlation","in the year",E$7,,,,,,,,{"jtc.per=0"}),"") -> 0.7823564972 | G22: =IFERROR(_xll.ECONOMATICA($B$4,"Correlation","in the year",G$7,,,,,,,,{"jtc.per=0"}),"") -> 0.7222157273 | I22: =IFERROR(_xll.ECONOMATICA($B$4,"Correlation","in the year",I$7,,,,,,,,{"jtc.per=0"}),"") -> 0.7193113537
B24: Drawdown | E24: =IFERROR(_xll.ECONOMATICA($B$4,"MaxDrawdown","in the year",E$7,,,,"decimal"),"") -> -0.07254196643 | G24: =IFERROR(_xll.ECONOMATICA($B$4,"MaxDrawdown","in the year",G$7,,,,"decimal"),"") -> -0.1631116112 | I24: =IFERROR(_xll.ECONOMATICA($B$4,"MaxDrawdown","in the year",I$7,,,,"decimal"),"") -> -0.06009070295
B25: Max Loss | E25: =IFERROR(_xll.ECONOMATICA($B$4,"MaxLoss","in the year",E$7,,,,"decimal"),"") -> -0.236450268 | G25: =IFERROR(_xll.ECONOMATICA($B$4,"MaxLoss","in the year",G$7,,,,"decimal"),"") -> -0.1631116112 | I25: =IFERROR(_xll.ECONOMATICA($B$4,"MaxLoss","in the year",I$7,,,,"decimal"),"") -> -0.2912127086
B27: FINANCIAL HIGHLIGHTS | I27: Thousands
E28: =IFERROR(_xll.ECONOMATICA($B$4,"Fin Statm Date"),"") -> 2020-06-30 | G28: =IFERROR(DATE(YEAR($E$28)-1,12,31),"") -> 2019-12-31 | I28: =IFERROR(DATE(YEAR($E$28)-2,12,31),"") -> 2018-12-31
B29: Assets | E29: =IFERROR(_xll.ECONOMATICA($B$4,"Total Assets",,E$28,,,,$I$27),"") -> 1661022491 | G29: =IFERROR(_xll.ECONOMATICA($B$4,"Total Assets",,G$28,,,,$I$27),"") -> 1531933657 | I29: =IFERROR(_xll.ECONOMATICA($B$4,"Total Assets",,I$28,,,,$I$27),"") -> 1429223392
B30: Stockholder's Equity | E30: =IFERROR(_xll.ECONOMATICA($B$4,"Stock Eq Par",,E$28,,,,$I$27),"") -> 163543683 | G30: =IFERROR(_xll.ECONOMATICA($B$4,"Stock Eq Par",,G$28,,,,$I$27),"") -> 177909959 | I30: =IFERROR(_xll.ECONOMATICA($B$4,"Stock Eq Par",,I$28,,,,$I$27),"") -> 195995645
B31: Working Capital | E31: =IFERROR(_xll.ECONOMATICA($B$4,"WorkCap",,E$28,,,,$I$27),"") -> -92513347 | G31: =IFERROR(_xll.ECONOMATICA($B$4,"WorkCap",,G$28,,,,$I$27),"") -> -194555422 | I31: =IFERROR(_xll.ECONOMATICA($B$4,"WorkCap",,I$28,,,,$I$27),"") -> -118035365
B32: Gross Debt | E32: =IFERROR(_xll.ECONOMATICA($B$4,"TtDebtGr",,E$28,,,,$I$27),"") -> 743834692 | G32: =IFERROR(_xll.ECONOMATICA($B$4,"TtDebtGr",,G$28,,,,$I$27),"") -> 624254477 | I32: =IFERROR(_xll.ECONOMATICA($B$4,"TtDebtGr",,I$28,,,,$I$27),"") -> 638922453
B33: Net Debt | E33: =IFERROR(_xll.ECONOMATICA($B$4,"TtNetDebt",,E$28,,,,$I$27),"") -> 691026028 | G33: =IFERROR(_xll.ECONOMATICA($B$4,"TtNetDebt",,G$28,,,,$I$27),"") -> 604508821 | I33: =IFERROR(_xll.ECONOMATICA($B$4,"TtNetDebt",,I$28,,,,$I$27),"") -> 617262491
B34: ST Debt | E34: =IFERROR(_xll.ECONOMATICA($B$4,"TotDebtsT",,E$28,,,,$I$27),"") ->  | G34: =IFERROR(_xll.ECONOMATICA($B$4,"TotDebtsT",,G$28,,,,$I$27),"") ->  | I34: =IFERROR(_xll.ECONOMATICA($B$4,"TotDebtsT",,I$28,,,,$I$27),"") -> 
B35: D/(D+E) | E35: =IFERROR(_xll.ECONOMATICA($B$4,"Cap Str(Mkt Cap)",,E$28,,,,"decimal"),"") -> 0.4312749397 | G35: =IFERROR(_xll.ECONOMATICA($B$4,"Cap Str(Mkt Cap)",,G$28,,,,"decimal"),"") -> 0.3850987937 | I35: =IFERROR(_xll.ECONOMATICA($B$4,"Cap Str(Mkt Cap)",,I$28,,,,"decimal"),"") -> 0.4091294451
L36: =IFERROR("SECTOR COMPARABLE (SECTOR NAICS): "&_xll.ECONOMATICA(Factsheet!B4,"SECTOR NAICS"),"") -> SECTOR COMPARABLE (SECTOR NAICS): Telecomunicaciones
B37: Revenues | E37: =IFERROR(_xll.ECONOMATICA($B$4,"Revenues","12M",E$28,,,,$I$27),"") -> 1013296899 | G37: =IFERROR(_xll.ECONOMATICA($B$4,"Revenues","12M",G$28,,,,$I$27),"") -> 1007347869 | I37: =IFERROR(_xll.ECONOMATICA($B$4,"Revenues","12M",I$28,,,,$I$27),"") -> 1038207681
B38: Gross Revenues | E38: =IFERROR(_xll.ECONOMATICA($B$4,"Gross Profit","12M",E$28,,,,$I$27),"") -> 385239699 | G38: =IFERROR(_xll.ECONOMATICA($B$4,"Gross Profit","12M",G$28,,,,$I$27),"") -> 376696502 | I38: =IFERROR(_xll.ECONOMATICA($B$4,"Gross Profit","12M",I$28,,,,$I$27),"") -> 373672671
B39: Gross Margin | E39: =IFERROR(_xll.ECONOMATICA($B$4,"GrossMargin","12M",E$28,,,,"decimal"),"") -> 0.3801844251 | G39: =IFERROR(_xll.ECONOMATICA($B$4,"GrossMargin","12M",G$28,,,,"decimal"),"") -> 0.3739487754 | I39: =IFERROR(_xll.ECONOMATICA($B$4,"GrossMargin","12M",I$28,,,,"decimal"),"") -> 0.359920927 | S39: COMPANY | W39: SECTOR
B40: EBIT | E40: =IFERROR(_xll.ECONOMATICA($B$4,"EBIT","12M",E$28,,,,$I$27),"") -> 162547247 | G40: =IFERROR(_xll.ECONOMATICA($B$4,"EBIT","12M",G$28,,,,$I$27),"") -> 154840535 | I40: =IFERROR(_xll.ECONOMATICA($B$4,"EBIT","12M",I$28,,,,$I$27),"") -> 139557171 | S40: Median | U40: AVG1 | W40: Avg | Y40: General AVG1
B41: EBIT Margin | E41: =IFERROR(_xll.ECONOMATICA($B$4,"EBITMargin","12M",E$28,,,,"decimal"),"") -> 0.1604142351 | G41: =IFERROR(_xll.ECONOMATICA($B$4,"EBITMargin","12M",G$28,,,,"decimal"),"") -> 0.1537110861 | I41: =IFERROR(_xll.ECONOMATICA($B$4,"EBITMargin","12M",I$28,,,,"decimal"),"") -> 0.1344212469 | P41: P/E * | S41: =IFERROR(INDEX(Multiplos!L:L,MATCH('Base Factsheet'!$B$5,Multiplos!$B:$B,0)),"") -> 38.77712651 | U41: =IFERROR(INDEX(Multiplos!N:N,MATCH('Base Factsheet'!$B$5,Multiplos!$B:$B,0)),"") -> 27.39511091 | W41: =AVERAGEIFS(Multiplos!$L:$L,Multiplos!$L:$L,">0",Multiplos!$L:$L,"<50") -> 33.51303294 | Y41: =AVERAGE(Multiplos!N:N) -> 25.66382477
B42: EBITDA | E42: =IFERROR(_xll.ECONOMATICA($B$4,"EBITDA","12M",E$28,,,,$I$27),"") -> 320923964 | G42: =IFERROR(_xll.ECONOMATICA($B$4,"EBITDA","12M",G$28,,,,$I$27),"") -> 313755745 | I42: =IFERROR(_xll.ECONOMATICA($B$4,"EBITDA","12M",I$28,,,,$I$27),"") -> 295269751
B43: EBITDA Margin | E43: =IFERROR(_xll.ECONOMATICA($B$4,"EbitdaMargin","12M",E$28,,,,"decimal"),"") -> 0.3167126676 | G43: =IFERROR(_xll.ECONOMATICA($B$4,"EbitdaMargin","12M",G$28,,,,"decimal"),"") -> 0.3114671254 | I43: =IFERROR(_xll.ECONOMATICA($B$4,"EbitdaMargin","12M",I$28,,,,"decimal"),"") -> 0.2844033582 | P43: EV / EBITDA* | S43: =IFERROR(INDEX(Multiplos!$T:$T,MATCH('Base Factsheet'!$B$5,Multiplos!$B:$B,0)),"") -> 5.356631963 | U43: =IFERROR(INDEX(Multiplos!$V:$V,MATCH('Base Factsheet'!$B$5,Multiplos!$B:$B,0)),"") -> 5.871752945 | W43: =AVERAGEIFS(Multiplos!$T:$T,Multiplos!$T:$T,">0",Multiplos!$T:$T,"<50") -> 7.589698333 | Y43: =AVERAGE(Multiplos!V:V) -> 8.70322206
B44: Net Income | E44: =IFERROR(_xll.ECONOMATICA($B$4,"Net Income","12M",E$28,,,,$I$27),"") -> 24901237 | G44: =IFERROR(_xll.ECONOMATICA($B$4,"Net Income","12M",G$28,,,,$I$27),"") -> 67730891 | I44: =IFERROR(_xll.ECONOMATICA($B$4,"Net Income","12M",I$28,,,,$I$27),"") -> 52566197
B45: Net Margin | E45: =IFERROR(_xll.ECONOMATICA($B$4,"Net Margin","12M",E$28,,,,"decimal"),"") -> 0.02787697962 | G45: =IFERROR(_xll.ECONOMATICA($B$4,"Net Margin","12M",G$28,,,,"decimal"),"") -> 0.06980056956 | I45: =IFERROR(_xll.ECONOMATICA($B$4,"Net Margin","12M",I$28,,,,"decimal"),"") -> 0.05251051788 | P45: Price / Book Value** | S45: =IFERROR(INDEX(Multiplos!AJ:AJ,MATCH('Base Factsheet'!$B$5,Multiplos!$B:$B,0)),"") -> 5.947690251 | U45: =IFERROR(INDEX(Multiplos!AM:AM,MATCH('Base Factsheet'!$B$5,Multiplos!$B:$B,0)),"") -> 5.225504148 | W45: =AVERAGE(Multiplos!AJ6:AJ1048576) -> 3.294676189 | Y45: =AVERAGE(Multiplos!AM:AM) -> 2.733607378
B46: EPS | E46: =IFERROR(_xll.ECONOMATICA($B$4,"EPS","12M",E$28,,,),"") -> 0.3772525701 | G46: =IFERROR(_xll.ECONOMATICA($B$4,"EPS","12M",G$28,,,),"") -> 1.025921616 | I46: =IFERROR(_xll.ECONOMATICA($B$4,"EPS","12M",I$28,,,),"") -> 0.7957507406
P47: Price / Sales * | S47: =IFERROR(INDEX(Multiplos!AS:AS,MATCH('Base Factsheet'!$B$5,Multiplos!$B:$B,0)),"") -> 0.9529274374 | U47: =IFERROR(INDEX(Multiplos!AU:AU,MATCH('Base Factsheet'!$B$5,Multiplos!$B:$B,0)),"") -> 0.963049085 | W47: =AVERAGE(Multiplos!AS6:AS1048576) -> 1.957033606 | Y47: =AVERAGE(Multiplos!AU:AU) -> 2.228092408
B48: ROE | E48: =IFERROR(_xll.ECONOMATICA($B$4,"ROE (avg)","12M",E$28,,,,"decimal"),"") -> 0.1206641224 | G48: =IFERROR(_xll.ECONOMATICA($B$4,"ROE (avg)","12M",G$28,,,,"decimal"),"") -> 0.2974472737 | I48: =IFERROR(_xll.ECONOMATICA($B$4,"ROE (avg)","12M",I$28,,,,"decimal"),"") -> 0.2152662735
B49: ROIC | E49: =IFERROR(_xll.ECONOMATICA($B$4,"ROIC (avg IC) %","12M",E$28,,,,"decimal"),"") -> 0.09324934866 | G49: =IFERROR(_xll.ECONOMATICA($B$4,"ROIC (avg IC) %","12M",G$28,,,,"decimal"),"") -> 0.0963858589 | I49: =IFERROR(_xll.ECONOMATICA($B$4,"ROIC (avg IC) %","12M",I$28,,,,"decimal"),"") -> 0.087506735 | P49: Net debt / EBITDA* | S49: =IFERROR(INDEX(Multiplos!BA:BA,MATCH('Base Factsheet'!$B$5,Multiplos!$B:$B,0)),"") -> 2.153239102 | U49: =IFERROR(INDEX(Multiplos!BC:BC,MATCH('Base Factsheet'!$B$5,Multiplos!$B:$B,0)),"") -> 2.28202168 | W49: =AVERAGE(Multiplos!BA6:BA1048576) -> 3.431951919 | Y49: =AVERAGE(Multiplos!BC:BC) -> 3.686009844
B50: ROA | E50: =IFERROR(_xll.ECONOMATICA($B$4,"ROA","12M",E$28,,,,"decimal"),"") -> 0.01700618574 | G50: =IFERROR(_xll.ECONOMATICA($B$4,"ROA","12M",G$28,,,,"decimal"),"") -> 0.04589849872 | I50: =IFERROR(_xll.ECONOMATICA($B$4,"ROA","12M",I$28,,,,"decimal"),"") -> 0.03814436799
P51: Dividend Yield | S51: =IFERROR(INDEX(Dividends!$N:$N,MATCH('Base Factsheet'!$B$5,Dividends!$B:$B,0)),"") -> 0.02545601671 | U51: =IFERROR(INDEX(Dividends!$P:$P,MATCH('Base Factsheet'!$B$5,Dividends!$B:$B,0)),"") -> 0.01858675066 | W51: =AVERAGE(Dividends!N7:N1048576) -> 0.005715890783 | Y51: =AVERAGE(Dividends!P:P) -> 0.0120759186
B52: Total Shares | E52: =IFERROR(_xll.ECONOMATICA($B$4,"Num of Shares",,E$28,,,,$I$27,,,,{"std.bac.totex=0"}),"") -> 96828989.5 | G52: =IFERROR(_xll.ECONOMATICA($B$4,"Num of Shares",,G$28,,,,$I$27,,,,{"std.bac.totex=0"}),"") -> 96828989.5 | I52: =IFERROR(_xll.ECONOMATICA($B$4,"Num of Shares",,I$28,,,,$I$27,,,,{"std.bac.totex=0"}),"") -> 96948803.87
B53: Outstanding | E53: =IFERROR(_xll.ECONOMATICA($B$4,"Num of Shares",,E$28,,,,$I$27,,,,),"") -> 66492748.66 | G53: =IFERROR(_xll.ECONOMATICA($B$4,"Num of Shares",,G$28,,,,$I$27,,,,),"") -> 66004214.83 | I53: =IFERROR(_xll.ECONOMATICA($B$4,"Num of Shares",,I$28,,,,$I$27,,,,),"") -> 66034792.53 | P53: D/(D+E) | S53: =IFERROR(INDEX(Multiplos!AB:AB,MATCH('Base Factsheet'!$B$5,Multiplos!$B:$B,0)),"") -> 0.4333327678 | U53: =IFERROR(INDEX(Multiplos!AD:AD,MATCH('Base Factsheet'!$B$5,Multiplos!$B:$B,0)),"") -> 0.4127548995 | W53: =AVERAGE(Multiplos!AB6:AB1048576) -> 0.5308577704 | Y53: =AVERAGE(Multiplos!AD:AD) -> 0.4319078552
P56: 1 Average 5 years |* Average 5 years (values >0 and <50) |** Average 5 years (values >0 and <30)

Sheet Multiplos
B2: Date: | C2: =Factsheet!AC2 -> 2020-08-06 | D2: ← Do not modify | H2: Price / Earnings | P2: EV / EBITDA | X2: D/(D+E) | AF2: PRICE / BOOK VALUE | AO2: PRICE /SALES | AW2: NET DEBT / EBITDA
H4: =EOMONTH(I4,-12) -> 2016-12-31 | I4: =EOMONTH(J4,-12) -> 2017-12-31 | J4: =EOMONTH(K4,-12) -> 2018-12-31 | K4: =DATE(YEAR($C$2)-1,12,31) -> 2019-12-31 | L4: =$C$2 -> 2020-08-06 | P4: =EOMONTH(Q4,-12) -> 2016-12-31 | Q4: =EOMONTH(R4,-12) -> 2017-12-31 | R4: =EOMONTH(S4,-12) -> 2018-12-31 | S4: =DATE(YEAR($C$2)-1,12,31) -> 2019-12-31 | T4: =$C$2 -> 2020-08-06 | X4: =EOMONTH(Y4,-12) -> 2016-12-31 | Y4: =EOMONTH(Z4,-12) -> 2017-12-31 | Z4: =EOMONTH(AA4,-12) -> 2018-12-31 | AA4: =DATE(YEAR($C$2)-1,12,31) -> 2019-12-31 | AB4: =TEXT($C$2,"AAAA") -> 2020 | AF4: =EOMONTH(AG4,-12) -> 2016-12-31 | AG4: =EOMONTH(AH4,-12) -> 2017-12-31 | AH4: =EOMONTH(AI4,-12) -> 2018-12-31 | AI4: =DATE(YEAR($C$2)-1,12,31) -> 2019-12-31 | AJ4: =$C$2 -> 2020-08-06 | AO4: =EOMONTH(AP4,-12) -> 2016-12-31 | AP4: =EOMONTH(AQ4,-12) -> 2017-12-31 | AQ4: =EOMONTH(AR4,-12) -> 2018-12-31 | AR4: =DATE(YEAR($C$2)-1,12,31) -> 2019-12-31 | AS4: =$C$2 -> 2020-08-06 | AW4: =EOMONTH(AX4,-12) -> 2016-12-31 | AX4: =EOMONTH(AY4,-12) -> 2017-12-31 | AY4: =EOMONTH(AZ4,-12) -> 2018-12-31 | AZ4: =DATE(YEAR($C$2)-1,12,31) -> 2019-12-31 | BA4: LATEST
B5: =_xll.ECOSECURITIES("stock","active","true","MEX",,,,"SECTOR NAICS="&SUBSTITUTE(_xll.ECONOMATICA(Factsheet!B4,"SECTOR NAICS"),",","\,")) -> Codigo | C5: =_xll.ECONOMATICA($B$6:$B$200,"name") -> Nombre | D5: =_xll.ECONOMATICA($B$6:$B$200,"SECTOR NAICS",,,,,,,,,"SECTOR NAICS") -> SECTOR NAICS | E5: =_xll.ECONOMATICA($B$6:$B$200,"Ticker",,,,,,,,,"Ticker (cleaned)") -> Ticker (cleaned) | F5: =_xll.ECONOMATICA(B6:B200,"MarketCapitaliz",,$C$2,,,"USD","millions",,,"Mkt Cap (millions)") -> Mkt Cap (millions) | H5: =_xll.ECONOMATICA($B$6:$B$200,"P/E","12m",H4,,,"USD",,,,"P/E") -> P/E | I5: =_xll.ECONOMATICA($B$6:$B$200,"P/E","12m",I4,,,"USD",,,,"P/E") -> P/E | J5: =_xll.ECONOMATICA($B$6:$B$200,"P/E","12m",J4,,,"USD",,,,"P/E") -> P/E | K5: =_xll.ECONOMATICA($B$6:$B$200,"P/E","12m",K4,,,"USD",,,,"P/E") -> P/E | L5: =_xll.ECONOMATICA($B$6:$B$200,"P/E","12m",L4,,,"USD",,,,"P/E") -> P/E | M5: Median 5 years | N5: Average 5 years (values >0 e <50) | P5: =_xll.ECONOMATICA($B$6:$B$200,"EV/EBITDA co","12m",P4,,,"USD",,,,"EV/EBITDA") -> EV/EBITDA | Q5: =_xll.ECONOMATICA($B$6:$B$200,"EV/EBITDA co","12m",Q4,,,"USD",,,,"EV/EBITDA") -> EV/EBITDA | R5: =_xll.ECONOMATICA($B$6:$B$200,"EV/EBITDA co","12m",R4,,,"USD",,,,"EV/EBITDA") -> EV/EBITDA | S5: =_xll.ECONOMATICA($B$6:$B$200,"EV/EBITDA co","12m",S4,,,"USD",,,,"EV/EBITDA") -> EV/EBITDA | T5: =_xll.ECONOMATICA($B$6:$B$200,"EV/EBITDA co","12m",T4,,,"USD",,,,"EV/EBITDA") -> EV/EBITDA | U5: Median 5 years | V5: Average 5 years (values >0 e <50) | X5: =_xll.ECONOMATICA($B$6:$B$200,"Cap Str(Mkt Cap)",,X4,,,"USD","decimal",,,"D/D+E") -> D/D+E | Y5: =_xll.ECONOMATICA($B$6:$B$200,"Cap Str(Mkt Cap)",,Y4,,,"USD","decimal",,,"D/D+E") -> D/D+E | Z5: =_xll.ECONOMATICA($B$6:$B$200,"Cap Str(Mkt Cap)",,Z4,,,"USD","decimal",,,"D/D+E") -> D/D+E | AA5: =_xll.ECONOMATICA($B$6:$B$200,"Cap Str(Mkt Cap)",,AA4,,,"USD","decimal",,,"D/D+E") -> D/D+E | AB5: =_xll.ECONOMATICA($B$6:$B$200,"Cap Str(Mkt Cap)",,$C$2,,,"USD","decimal",,,"D/D+E") -> D/D+E | AC5: Median 5 years | AD5: Average 5 years | AF5: =_xll.ECONOMATICA($B$6:$B$200,"P/BV",,AF4,,,"USD",,,,"P/B") -> P/B | AG5: =_xll.ECONOMATICA($B$6:$B$200,"P/BV",,AG4,,,"USD",,,,"P/B") -> P/B | AH5: =_xll.ECONOMATICA($B$6:$B$200,"P/BV",,AH4,,,"USD",,,,"P/B") -> P/B | AI5: =_xll.ECONOMATICA($B$6:$B$200,"P/BV",,AI4,,,"USD",,,,"P/B") -> P/B | AJ5: =_xll.ECONOMATICA($B$6:$B$200,"P/BV",,AJ4,,,"USD",,,,"P/B") -> P/B | AK5: High 5 years | AL5: P/B atual vs High 5 years | AM5: Average 5 years (values >0 e <30) | AO5: =_xll.ECONOMATICA($B$6:$B$200,"PSR","12m",AO4,,,"USD",,,,"P/Sales") -> P/Sales | AP5: =_xll.ECONOMATICA($B$6:$B$200,"PSR","12m",AP4,,,"USD",,,,"P/Sales") -> P/Sales | AQ5: =_xll.ECONOMATICA($B$6:$B$200,"PSR","12m",AQ4,,,"USD",,,,"P/Sales") -> P/Sales | AR5: =_xll.ECONOMATICA($B$6:$B$200,"PSR","12m",AR4,,,"USD",,,,"P/Sales") -> P/Sales | AS5: =_xll.ECONOMATICA($B$6:$B$200,"PSR","12m",AS4,,,"USD",,,,"P/Sales") -> P/Sales | AT5: Median 5 years | AU5: Average 5 years (values >0 e <50) | AW5: =_xll.ECONOMATICA($B$6:$B$200,"NetDebt/Ebitda","12m",AW4,,,"USD",,,,"NetDebt/EBITDA") -> NetDebt/EBITDA | AX5: =_xll.ECONOMATICA($B$6:$B$200,"NetDebt/Ebitda","12m",AX4,,,"USD",,,,"NetDebt/EBITDA") -> NetDebt/EBITDA | AY5: =_xll.ECONOMATICA($B$6:$B$200,"NetDebt/Ebitda","12m",AY4,,,"USD",,,,"NetDebt/EBITDA") -> NetDebt/EBITDA | AZ5: =_xll.ECONOMATICA($B$6:$B$200,"NetDebt/Ebitda","12m",AZ4,,,"USD",,,,"NetDebt/EBITDA") -> NetDebt/EBITDA | BA5: =_xll.ECONOMATICA($B$6:$B$200,"NetDebt/Ebitda","12m",BA4,,,"USD",,,,"NetDebt/EBITDA") -> NetDebt/EBITDA | BB5: Median 5 years | BC5: Average 5 years (values >0 e <50)
B6: AMXL<XMEX> | C6: America Movil | D6: Telecomunicaciones | E6: AMXL | F6: 42128.1349 | H6: 98.99595409 | I6: 38.52909509 | J6: 17.55574866 | K6: 14.71847338 | L6: 38.77712651 | M6: =IFERROR(MEDIAN(H6:L6),"-x-") -> 38.52909509 | N6: =IFERROR(AVERAGEIFS(H6:L6,H6:L6,">0",H6:L6,"<50"),"-x-") -> 27.39511091 | P6: 6.213903393 | Q6: 7.144300644 | R6: 5.384156772 | S6: 5.259771954 | T6: 5.356631963 | U6: =IFERROR(MEDIAN(P6:T6),"-x-") -> 5.384156772 | V6: =IFERROR(AVERAGEIFS(P6:T6,P6:T6,">0",P6:T6,"<50"),"-x-") -> 5.871752945 | X6: 0.4522278122 | Y6: 0.3839610247 | Z6: 0.4091560431 | AA6: 0.3850968495 | AB6: 0.4333327678 | AC6: =IFERROR(MEDIAN(X6:AB6),"-x-") -> 0.4091560431 | AD6: =IFERROR(AVERAGE(X6:AB6),"-x-") -> 0.4127548995 | AF6: 4.103807495 | AG6: 5.767187131 | AH6: 4.70676811 | AI6: 5.602067751 | AJ6: 5.947690251 | AK6: =IF(MAX(AF6:AJ6)=0,"-x-",MAX(AF6:AJ6)) -> 5.947690251 | AL6: =IFERROR(AJ6/AK6,"-x-") -> 1 | AM6: =IFERROR(AVERAGEIFS(AF6:AJ6,AF6:AJ6,">0",AF6:AJ6,"<30"),"-x-") -> 5.225504148 | AO6: 0.8778422347 | AP6: 1.105975049 | AQ6: 0.8888770133 | AR6: 0.9896236908 | AS6: 0.9529274374 | AT6: =IFERROR(MEDIAN(AO6:AS6),"-x-") -> 0.9529274374 | AU6: =IFERROR(AVERAGEIFS(AO6:AS6,AO6:AS6,">0",AO6:AS6,"<50"),"-x-") -> 0.963049085 | AW6: 2.652022218 | AX6: 2.587657373 | AY6: 2.090503646 | AZ6: 1.926686063 | BA6: 2.153239102 | BB6: =IFERROR(MEDIAN(AW6:BA6),"-x-") -> 2.153239102 | BC6: =IFERROR(AVERAGEIFS(AW6:BA6,AW6:BA6,">0",AW6:BA6,"<50"),"-x-") -> 2.28202168
B7: AXTELCPO<XMEX> | C7: Axtel | D7: Telecomunicaciones | E7: AXTELCPO | F7: 809.6638394 | H7: -1.310067954 | I7: 117.2676064 | J7: 7.848388243 | K7: -635.85845 | L7: 47.56423012 | M7: 7.848388243 | N7: =IFERROR(AVERAGEIFS(H7:L7,H7:L7,">0",H7:L7,"<50"),"-x-") -> 27.70630918 | P7: 6.787183528 | Q7: 6.984701546 | R7: 5.057950616 | S7: 5.026927734 | T7: 5.008746099 | U7: 5.057950616 | V7: =IFERROR(AVERAGEIFS(P7:T7,P7:T7,">0",P7:T7,"<50"),"-x-") -> 5.773101905 | X7: 0.8217973451 | Y7: 0.6496625275 | Z7: 0.6433652552 | AA7: 0.6094118707 | AB7: 0.4644116778 | AC7: 0.6433652552 | AD7: 0.6377297353 | AF7: 1.931688642 | AG7: 4.387171893 | AH7: 2.372740361 | AI7: 2.603574467 | AJ7: 4.585917656 | AK7: 4.585917656 | AL7: 1 | AM7: =IFERROR(AVERAGEIFS(AF7:AJ7,AF7:AJ7,">0",AF7:AJ7,"<30"),"-x-") -> 3.176218604 | AO7: 0.3383207356 | AP7: 0.5812010249 | AQ7: 0.6718120729 | AR7: 0.6933264538 | AS7: 1.47979704 | AT7: 0.6718120729 | AU7: =IFERROR(AVERAGEIFS(AO7:AS7,AO7:AS7,">0",AO7:AS7,"<50"),"-x-") -> 0.7528914654 | AW7: 5.506454738 | AX7: 4.434944711 | AY7: 3.068353591 | AZ7: 2.986494503 | BA7: 2.044681582 | BB7: 3.068353591 | BC7: =IFERROR(AVERAGEIFS(AW7:BA7,AW7:BA7,">0",AW7:BA7,"<50"),"-x-") -> 3.608185825
B8: CABLECPO<XMEX> | C8: Cablevision | D8: Telecomunicaciones | E8: CABLECPO | H8: 49.28798889 | M8: 49.28798889 | N8: 49.28798889 | P8: 8.008306581 | U8: 8.008306581 | V8: 8.008306581 | X8: 0.019443995 | AC8: 0.019443995 | AD8: 0.019443995 | AF8: 3.034421195 | AK8: 3.034421195 | AL8: 0 | AM8: 3.034421195 | AO8: 3.060658831 | AT8: 3.060658831 | AU8: 3.060658831 | AW8: -0.006994472759 | AX8: -0.1626327748 | AY8: -0.2452181174 | AZ8: -0.1172522032 | BA8: -0.1776424141 | BB8: -0.1626327748 | BC8: -x-
B9: FSITES20<XMEX> | C9: Fsites | D9: Telecomunicaciones | E9: FSITES20 | M9: -x- | N9: -x- | U9: -x- | V9: -x- | AC9: -x- | AD9: -x- | AK9: -x- | AL9: -x- | AM9: -x- | AT9: -x- | AU9: -x- | BB9: -x- | BC9: -x-
B10: MAXCOMA<XMEX> | C10: Maxcom Telecom | D10: Telecomunicaciones | E10: MAXCOMA | F10: 14.92984308 | H10: -0.3890084843 | I10: 414.4257207 | J10: -2.787492843 | K10: -28.35856361 | L10: -1.902600237 | M10: -1.902600237 | N10: -x- | P10: -2.092704255 | Q10: 12.77503754 | R10: 15.14797684 | S10: 5.435892495 | T10: 8.439905365 | U10: 8.439905365 | V10: 10.44970306 | X10: 0.7456424898 | Y10: 0.6640731685 | Z10: 0.7300597113 | AA10: 0.7376998143 | AB10: 0.7811868884 | AC10: 0.7376998143 | AD10: 0.7317324145 | AF10: 1.073988885 | AG10: 1.188932133 | AH10: 1.19048664 | AI10: 0.2657492441 | AJ10: 0.3842466997 | AK10: 1.19048664 | AL10: 0.3227643947 | AM10: 0.8206807203 | AO10: 0.333739577 | AP10: 0.4174426256 | AQ10: 0.5937440609 | AR10: 1.014298076 | AS10: 0.6573977006 | AT10: 0.5937440609 | AU10: 0.6033244079 | AX10: 7.28557653 | AY10: 10.07962325 | AZ10: 3.591174336 | BA10: 6.466854402 | BB10: 6.876215466 | BC10: 6.855807129
B11: MEGACPO<XMEX> | C11: Megacable Holdings | D11: Telecomunicaciones | E11: MEGACPO | F11: 2583.886436 | H11: 15.43450135 | I11: 18.05861765 | J11: 16.6759447 | K11: 15.52567579 | L11: 14.19774219 | M11: 15.52567579 | N11: 15.97849634 | P11: 9.001662521 | Q11: 9.142307705 | R11: 8.210852254 | S11: 7.008528232 | T11: 6.245552674 | U11: 8.210852254 | V11: 7.921780677 | X11: 0.05761439211 | Y11: 0.05578090573 | Z11: 0.04894920801 | AA11: 0.08907560049 | AB11: 0.1132955675 | AC11: 0.05761439211 | AD11: 0.07294313477 | AF11: 2.696553228 | AG11: 2.789525937 | AH11: 2.77845389 | AI11: 2.247390735 | AJ11: 1.960014834 | AK11: 2.789525937 | AL11: 0.7026336656 | AM11: 2.494387725 | AO11: 3.508146478 | AP11: 3.987362763 | AQ11: 3.877351615 | AR11: 3.081553455 | AS11: 2.710400447 | AT11: 3.508146478 | AU11: 3.432962952 | AW11: 0.3556168585 | AX11: 0.1151374878 | AY11: 0.06052048998 | AZ11: 0.4172625137 | BA11: 0.4779049338 | BB11: 0.3556168585 | BC11: 0.2852884568
B12: RCENTROA<XMEX> | C12: Radio Centro | D12: Telecomunicaciones | E12: RCENTROA | F12: 54.86754931 | I12: 23.89571408 | J12: 60.59175278 | K12: -1.839277212 | L12: -1.364196233 | M12: 11.26575892 | N12: 23.89571408 | Q12: 9.595568917 | R12: 10.17625495 | S12: -185.0153562 | T12: -20.04570521 | U12: -5.225068144 | V12: 9.885911931 | Y12: 0.412247154 | Z12: 0.3402525261 | AA12: 0.5487502239 | AB12: 0.5891733392 | AC12: 0.480498689 | AD12: 0.4726058108 | AG12: 1.086759412 | AH12: 1.13866587 | AI12: 0.7283316226 | AJ12: 0.6427298093 | AK12: 1.13866587 | AL12: 0.5644586583 | AM12: 0.8991216785 | AP12: 2.42497061 | AQ12: 3.154982894 | AR12: 1.529904491 | AS12: 1.519292304 | AT12: 1.97743755 | AU12: 2.157287575 | AW12: 2.685078849 | AX12: 3.850561895 | AY12: 3.291671215 | BB12: 3.291671215 | BC12: 3.275770653
B13: SITESB-1<XMEX> | C13: Telesites | D13: Telecomunicaciones | E13: SITESB-1 | F13: 2502.459178 | H13: -38.99581467 | I13: -71.90483671 | J13: -398.5351452 | K13: -211.113142 | L13: 602.6348908 | M13: -71.90483671 | N13: -x- | P13: 19.41711181 | Q13: 20.61449468 | R13: 14.48168611 | S13: 9.915554943 | T13: 10.82060368 | U13: 14.48168611 | V13: 15.04989024 | X13: 0.3759194659 | Y13: 0.3173001573 | Z13: 0.376949796 | AA13: 0.3382653382 | AB13: 0.2913307809 | AC13: 0.3382653382 | AD13: 0.3399531077 | AF13: 3.831809077 | AG13: 5.088267033 | AH13: 3.715818797 | AI13: 3.954056939 | AJ13: 4.459865339 | AK13: 5.088267033 | AL13: 0.8764998594 | AM13: 4.209963437 | AO13: 6.847767331 | AP13: 8.442611878 | AQ13: 5.730906556 | AR13: 6.241738478 | AS13: 7.362560912 | AT13: 6.847767331 | AU13: 6.925117031 | AW13: 7.25187954 | AX13: 6.431001007 | AY13: 5.316342285 | AZ13: 3.23603333 | BA13: 2.944347972 | BB13: 5.316342285 | BC13: 5.035920827
B14: TLEVISACPO<XMEX> | C14: Televisa Gpo | D14: Telecomunicaciones | E14: TLEVISACPO | F14: 3714.583435 | H14: 67.58363343 | I14: 47.72342443 | J14: 24.15573057 | K14: 28.07576316 | L14: -18.38160655 | M14: 28.07576316 | N14: 33.31830605 | P14: 10.5890368 | Q14: 9.888902168 | R14: 6.443947644 | S14: 6.273798649 | T14: 5.775490642 | U14: 6.443947644 | V14: 7.79423518 | X14: 0.3539270029 | Y14: 0.3772132116 | Z14: 0.4721434671 | AA14: 0.4906057335 | AB14: 0.644241519 | AC14: 0.4721434671 | AD14: 0.4676261868 | AF14: 3.011788934 | AG14: 2.536555811 | AH14: 1.59342845 | AI14: 1.412711165 | AJ14: 1.286075476 | AK14: 3.011788934 | AL14: 0.4270138127 | AM14: 1.968111967 | AO14: 2.612036836 | AP14: 2.290386583 | AQ14: 1.433238958 | AR14: 1.276395254 | AS14: 0.875299864 | AT14: 1.433238958 | AU14: 1.697471499 | AW14: 2.701235216 | AX14: 2.833237359 | AY14: 2.443364467 | AZ14: 2.518137769 | BA14: 2.997336433 | BB14: 2.701235216 | BC14: 2.698662249
B15: AZTECACPO<XMEX> | C15: TV Azteca | D15: Telecomunicaciones | E15: AZTECACPO | F15: 48.30106437 | H15: -3.029584408 | I15: -8.980314523 | J15: -10.70616132 | K15: 2.064847974 | L15: -0.5167413546 | M15: -3.029584408 | N15: 2.064847974 | P15: 6.491356935 | Q15: 6.354894498 | R15: 7.861981328 | S15: 5.6823894 | T15: 11.48095791 | U15: 6.491356935 | V15: 7.574316015 | X15: 0.6529019631 | Y15: 0.5618481382 | Z15: 0.6590506674 | AA15: 0.8582166709 | AB15: 0.9298896225 | AC15: 0.6590506674 | AD15: 0.7323814124 | AF15: 1.721363586 | AG15: 2.468568265 | AH15: 1.989462774 | AI15: 0.6000205502 | AJ15: 7.090869451 | AK15: 7.090869451 | AL15: 1 | AM15: 2.774056925 | AO15: 0.7706067269 | AP15: 0.7554916723 | AQ15: 0.5064601881 | AR15: 0.1691924068 | AS15: 0.09859314004 | AT15: 0.5064601881 | AU15: 0.4600688268 | AW15: 3.805619928 | AX15: 3.20177431 | AY15: 4.938327675 | AZ15: 4.737494417 | BA15: 10.54889334 | BB15: 4.737494417 | BC15: 5.446421934
M16: -x- | N16: -x- | U16: -x- | V16: -x- | AC16: -x- | AD16: -x- | AK16: -x- | AL16: -x- | AM16: -x- | AT16: -x- | AU16: -x- | BB16: -x- | BC16: -x-
M17: -x- | N17: -x- | U17: -x- | V17: -x- | AC17: -x- | AD17: -x- | AK17: -x- | AL17: -x- | AM17: -x- | AT17: -x- | AU17: -x- | BB17: -x- | BC17: -x-
M18: -x- | N18: -x- | U18: -x- | V18: -x- | AC18: -x- | AD18: -x- | AK18: -x- | AL18: -x- | AM18: -x- | AT18: -x- | AU18: -x- | BB18: -x- | BC18: -x-
M19: -x- | N19: -x- | U19: -x- | V19: -x- | AC19: -x- | AD19: -x- | AK19: -x- | AL19: -x- | AM19: -x- | AT19: -x- | AU19: -x- | BB19: -x- | BC19: -x-
M20: -x- | N20: -x- | U20: -x- | V20: -x- | AC20: -x- | AD20: -x- | AK20: -x- | AL20: -x- | AM20: -x- | AT20: -x- | AU20: -x- | BB20: -x- | BC20: -x-
M21: -x- | N21: -x- | U21: -x- | V21: -x- | AC21: -x- | AD21: -x- | AK21: -x- | AL21: -x- | AM21: -x- | AT21: -x- | AU21: -x- | BB21: -x- | BC21: -x-
M22: -x- | N22: -x- | U22: -x- | V22: -x- | AC22: -x- | AD22: -x- | AK22: -x- | AL22: -x- | AM22: -x- | AT22: -x- | AU22: -x- | BB22: -x- | BC22: -x-
M23: -x- | N23: -x- | U23: -x- | V23: -x- | AC23: -x- | AD23: -x- | AK23: -x- | AL23: -x- | AM23: -x- | AT23: -x- | AU23: -x- | BB23: -x- | BC23: -x-
M24: -x- | N24: -x- | U24: -x- | V24: -x- | AC24: -x- | AD24: -x- | AK24: -x- | AL24: -x- | AM24: -x- | AT24: -x- | AU24: -x- | BB24: -x- | BC24: -x-
M25: -x- | N25: -x- | U25: -x- | V25: -x- | AC25: -x- | AD25: -x- | AK25: -x- | AL25: -x- | AM25: -x- | AT25: -x- | AU25: -x- | BB25: -x- | BC25: -x-
M26: -x- | N26: -x- | U26: -x- | V26: -x- | AC26: -x- | AD26: -x- | AK26: -x- | AL26: -x- | AM26: -x- | AT26: -x- | AU26: -x- | BB26: -x- | BC26: -x-
M27: -x- | N27: -x- | U27: -x- | V27: -x- | AC27: -x- | AD27: -x- | AK27: -x- | AL27: -x- | AM27: -x- | AT27: -x- | AU27: -x- | BB27: -x- | BC27: -x-
M28: -x- | N28: -x- | U28: -x- | V28: -x- | AC28: -x- | AD28: -x- | AK28: -x- | AL28: -x- | AM28: -x- | AT28: -x- | AU28: -x- | BB28: -x- | BC28: -x-
M29: -x- | N29: -x- | U29: -x- | V29: -x- | AC29: -x- | AD29: -x- | AK29: -x- | AL29: -x- | AM29: -x- | AT29: -x- | AU29: -x- | BB29: -x- | BC29: -x-
M30: -x- | N30: -x- | U30: -x- | V30: -x- | AC30: -x- | AD30: -x- | AK30: -x- | AL30: -x- | AM30: -x- | AT30: -x- | AU30: -x- | BB30: -x- | BC30: -x-
M31: -x- | N31: -x- | U31: -x- | V31: -x- | AC31: -x- | AD31: -x- | AK31: -x- | AL31: -x- | AM31: -x- | AT31: -x- | AU31: -x- | BB31: -x- | BC31: -x-
M32: -x- | N32: -x- | U32: -x- | V32: -x- | AC32: -x- | AD32: -x- | AK32: -x- | AL32: -x- | AM32: -x- | AT32: -x- | AU32: -x- | BB32: -x- | BC32: -x-
M33: -x- | N33: -x- | U33: -x- | V33: -x- | AC33: -x- | AD33: -x- | AK33: -x- | AL33: -x- | AM33: -x- | AT33: -x- | AU33: -x- | BB33: -x- | BC33: -x-
M34: -x- | N34: -x- | U34: -x- | V34: -x- | AC34: -x- | AD34: -x- | AK34: -x- | AL34: -x- | AM34: -x- | AT34: -x- | AU34: -x- | BB34: -x- | BC34: -x-
M35: -x- | N35: -x- | U35: -x- | V35: -x- | AC35: -x- | AD35: -x- | AK35: -x- | AL35: -x- | AM35: -x- | AT35: -x- | AU35: -x- | BB35: -x- | BC35: -x-
M36: -x- | N36: -x- | U36: -x- | V36: -x- | AC36: -x- | AD36: -x- | AK36: -x- | AL36: -x- | AM36: -x- | AT36: -x- | AU36: -x- | BB36: -x- | BC36: -x-
M37: -x- | N37: -x- | U37: -x- | V37: -x- | AC37: -x- | AD37: -x- | AK37: -x- | AL37: -x- | AM37: -x- | AT37: -x- | AU37: -x- | BB37: -x- | BC37: -x-
M38: -x- | N38: -x- | U38: -x- | V38: -x- | AC38: -x- | AD38: -x- | AK38: -x- | AL38: -x- | AM38: -x- | AT38: -x- | AU38: -x- | BB38: -x- | BC38: -x-
M39: -x- | N39: -x- | U39: -x- | V39: -x- | AC39: -x- | AD39: -x- | AK39: -x- | AL39: -x- | AM39: -x- | AT39: -x- | AU39: -x- | BB39: -x- | BC39: -x-
M40: -x- | N40: -x- | U40: -x- | V40: -x- | AC40: -x- | AD40: -x- | AK40: -x- | AL40: -x- | AM40: -x- | AT40: -x- | AU40: -x- | BB40: -x- | BC40: -x-
M41: -x- | N41: -x- | U41: -x- | V41: -x- | AC41: -x- | AD41: -x- | AK41: -x- | AL41: -x- | AM41: -x- | AT41: -x- | AU41: -x- | BB41: -x- | BC41: -x-
M42: -x- | N42: -x- | U42: -x- | V42: -x- | AC42: -x- | AD42: -x- | AK42: -x- | AL42: -x- | AM42: -x- | AT42: -x- | AU42: -x- | BB42: -x- | BC42: -x-
M43: -x- | N43: -x- | U43: -x- | V43: -x- | AC43: -x- | AD43: -x- | AK43: -x- | AL43: -x- | AM43: -x- | AT43: -x- | AU43: -x- | BB43: -x- | BC43: -x-
M44: -x- | N44: -x- | U44: -x- | V44: -x- | AC44: -x- | AD44: -x- | AK44: -x- | AL44: -x- | AM44: -x- | AT44: -x- | AU44: -x- | BB44: -x- | BC44: -x-
M45: -x- | N45: -x- | U45: -x- | V45: -x- | AC45: -x- | AD45: -x- | AK45: -x- | AL45: -x- | AM45: -x- | AT45: -x- | AU45: -x- | BB45: -x- | BC45: -x-
M46: -x- | N46: -x- | U46: -x- | V46: -x- | AC46: -x- | AD46: -x- | AK46: -x- | AL46: -x- | AM46: -x- | AT46: -x- | AU46: -x- | BB46: -x- | BC46: -x-
M47: -x- | N47: -x- | U47: -x- | V47: -x- | AC47: -x- | AD47: -x- | AK47: -x- | AL47: -x- | AM47: -x- | AT47: -x- | AU47: -x- | BB47: -x- | BC47: -x-
M48: -x- | N48: -x- | U48: -x- | V48: -x- | AC48: -x- | AD48: -x- | AK48: -x- | AL48: -x- | AM48: -x- | AT48: -x- | AU48: -x- | BB48: -x- | BC48: -x-
M49: -x- | N49: -x- | U49: -x- | V49: -x- | AC49: -x- | AD49: -x- | AK49: -x- | AL49: -x- | AM49: -x- | AT49: -x- | AU49: -x- | BB49: -x- | BC49: -x-
M50: -x- | N50: -x- | U50: -x- | V50: -x- | AC50: -x- | AD50: -x- | AK50: -x- | AL50: -x- | AM50: -x- | AT50: -x- | AU50: -x- | BB50: -x- | BC50: -x-
M51: -x- | N51: -x- | U51: -x- | V51: -x- | AC51: -x- | AD51: -x- | AK51: -x- | AL51: -x- | AM51: -x- | AT51: -x- | AU51: -x- | BB51: -x- | BC51: -x-
M52: -x- | N52: -x- | U52: -x- | V52: -x- | AC52: -x- | AD52: -x- | AK52: -x- | AL52: -x- | AM52: -x- | AT52: -x- | AU52: -x- | BB52: -x- | BC52: -x-
M53: -x- | N53: -x- | U53: -x- | V53: -x- | AC53: -x- | AD53: -x- | AK53: -x- | AL53: -x- | AM53: -x- | AT53: -x- | AU53: -x- | BB53: -x- | BC53: -x-
M54: -x- | N54: -x- | U54: -x- | V54: -x- | AC54: -x- | AD54: -x- | AK54: -x- | AL54: -x- | AM54: -x- | AT54: -x- | AU54: -x- | BB54: -x- | BC54: -x-
M55: -x- | N55: -x- | U55: -x- | V55: -x- | AC55: -x- | AD55: -x- | AK55: -x- | AL55: -x- | AM55: -x- | AT55: -x- | AU55: -x- | BB55: -x- | BC55: -x-
M56: -x- | N56: -x- | U56: -x- | V56: -x- | AC56: -x- | AD56: -x- | AK56: -x- | AL56: -x- | AM56: -x- | AT56: -x- | AU56: -x- | BB56: -x- | BC56: -x-
M57: -x- | N57: -x- | U57: -x- | V57: -x- | AC57: -x- | AD57: -x- | AK57: -x- | AL57: -x- | AM57: -x- | AT57: -x- | AU57: -x- | BB57: -x- | BC57: -x-
M58: -x- | N58: -x- | U58: -x- | V58: -x- | AC58: -x- | AD58: -x- | AK58: -x- | AL58: -x- | AM58: -x- | AT58: -x- | AU58: -x- | BB58: -x- | BC58: -x-
M59: -x- | N59: -x- | U59: -x- | V59: -x- | AC59: -x- | AD59: -x- | AK59: -x- | AL59: -x- | AM59: -x- | AT59: -x- | AU59: -x- | BB59: -x- | BC59: -x-
M60: -x- | N60: -x- | U60: -x- | V60: -x- | AC60: -x- | AD60: -x- | AK60: -x- | AL60: -x- | AM60: -x- | AT60: -x- | AU60: -x- | BB60: -x- | BC60: -x-
M61: -x- | N61: -x- | U61: -x- | V61: -x- | AC61: -x- | AD61: -x- | AK61: -x- | AL61: -x- | AM61: -x- | AT61: -x- | AU61: -x- | BB61: -x- | BC61: -x-
M62: -x- | N62: -x- | U62: -x- | V62: -x- | AC62: -x- | AD62: -x- | AK62: -x- | AL62: -x- | AM62: -x- | AT62: -x- | AU62: -x- | BB62: -x- | BC62: -x-
M63: -x- | N63: -x- | U63: -x- | V63: -x- | AC63: -x- | AD63: -x- | AK63: -x- | AL63: -x- | AM63: -x- | AT63: -x- | AU63: -x- | BB63: -x- | BC63: -x-
M64: -x- | N64: -x- | U64: -x- | V64: -x- | AC64: -x- | AD64: -x- | AK64: -x- | AL64: -x- | AM64: -x- | AT64: -x- | AU64: -x- | BB64: -x- | BC64: -x-
M65: -x- | N65: -x- | U65: -x- | V65: -x- | AC65: -x- | AD65: -x- | AK65: -x- | AL65: -x- | AM65: -x- | AT65: -x- | AU65: -x- | BB65: -x- | BC65: -x-
M66: -x- | N66: -x- | U66: -x- | V66: -x- | AC66: -x- | AD66: -x- | AK66: -x- | AL66: -x- | AM66: -x- | AT66: -x- | AU66: -x- | BB66: -x- | BC66: -x-
M67: -x- | N67: -x- | U67: -x- | V67: -x- | AC67: -x- | AD67: -x- | AK67: -x- | AL67: -x- | AM67: -x- | AT67: -x- | AU67: -x- | BB67: -x- | BC67: -x-
M68: -x- | N68: -x- | U68: -x- | V68: -x- | AC68: -x- | AD68: -x- | AK68: -x- | AL68: -x- | AM68: -x- | AT68: -x- | AU68: -x- | BB68: -x- | BC68: -x-
M69: -x- | N69: -x- | U69: -x- | V69: -x- | AC69: -x- | AD69: -x- | AK69: -x- | AL69: -x- | AM69: -x- | AT69: -x- | AU69: -x- | BB69: -x- | BC69: -x-
M70: =IFERROR(MEDIAN(H70:L70),"-x-") -> -x- | N70: =IFERROR(AVERAGEIFS(H70:L70,H70:L70,">0",H70:L70,"<50"),"-x-") -> -x- | U70: =IFERROR(MEDIAN(P70:T70),"-x-") -> -x- | V70: =IFERROR(AVERAGEIFS(P70:T70,P70:T70,">0",P70:T70,"<50"),"-x-") -> -x- | AC70: =IFERROR(MEDIAN(X70:AB70),"-x-") -> -x- | AD70: =IFERROR(AVERAGE(X70:AB70),"-x-") -> -x- | AK70: =IF(MAX(AF70:AJ70)=0,"-x-",MAX(AF70:AJ70)) -> -x- | AL70: =IFERROR(AJ70/AK70,"-x-") -> -x- | AM70: -x- | AT70: =IFERROR(MEDIAN(AO70:AS70),"-x-") -> -x- | AU70: =IFERROR(AVERAGEIFS(AO70:AS70,AO70:AS70,">0",AO70:AS70,"<50"),"-x-") -> -x- | BB70: =IFERROR(MEDIAN(AW70:BA70),"-x-") -> -x- | BC70: =IFERROR(AVERAGEIFS(AW70:BA70,AW70:BA70,">0",AW70:BA70,"<50"),"-x-") -> -x-
M71: -x- | N71: -x- | U71: -x- | V71: -x- | AC71: -x- | AD71: -x- | AK71: -x- | AL71: -x- | AM71: =IFERROR(AVERAGEIFS(AF71:AJ71,AF71:AJ71,">0",AF71:AJ71,"<30"),"-x-") -> -x- | AT71: -x- | AU71: -x- | BB71: -x- | BC71: -x-
M72: -x- | N72: -x- | U72: -x- | V72: -x- | AC72: -x- | AD72: -x- | AK72: -x- | AL72: -x- | AM72: -x- | AT72: -x- | AU72: -x- | BB72: -x- | BC72: -x-
M73: -x- | N73: -x- | U73: -x- | V73: -x- | AC73: -x- | AD73: -x- | AK73: -x- | AL73: -x- | AM73: -x- | AT73: -x- | AU73: -x- | BB73: -x- | BC73: -x-
M74: -x- | N74: -x- | U74: -x- | V74: -x- | AC74: -x- | AD74: -x- | AK74: -x- | AL74: -x- | AM74: -x- | AT74: -x- | AU74: -x- | BB74: -x- | BC74: -x-
M75: -x- | N75: -x- | U75: -x- | V75: -x- | AC75: -x- | AD75: -x- | AK75: -x- | AL75: -x- | AM75: -x- | AT75: -x- | AU75: -x- | BB75: -x- | BC75: -x-
M76: -x- | N76: -x- | U76: -x- | V76: -x- | AC76: -x- | AD76: -x- | AK76: -x- | AL76: -x- | AM76: -x- | AT76: -x- | AU76: -x- | BB76: -x- | BC76: -x-
M77: -x- | N77: -x- | U77: -x- | V77: -x- | AC77: -x- | AD77: -x- | AK77: -x- | AL77: -x- | AM77: -x- | AT77: -x- | AU77: -x- | BB77: -x- | BC77: -x-
M78: -x- | N78: -x- | U78: -x- | V78: -x- | AC78: -x- | AD78: -x- | AK78: -x- | AL78: -x- | AM78: -x- | AT78: -x- | AU78: -x- | BB78: -x- | BC78: -x-
M79: -x- | N79: -x- | U79: -x- | V79: -x- | AC79: -x- | AD79: -x- | AK79: -x- | AL79: -x- | AM79: -x- | AT79: -x- | AU79: -x- | BB79: -x- | BC79: -x-
M80: -x- | N80: -x- | U80: -x- | V80: -x- | AC80: -x- | AD80: -x- | AK80: -x- | AL80: -x- | AM80: -x- | AT80: -x- | AU80: -x- | BB80: -x- | BC80: -x-
M81: -x- | N81: -x- | U81: -x- | V81: -x- | AC81: -x- | AD81: -x- | AK81: -x- | AL81: -x- | AM81: -x- | AT81: -x- | AU81: -x- | BB81: -x- | BC81: -x-
M82: -x- | N82: -x- | U82: -x- | V82: -x- | AC82: -x- | AD82: -x- | AK82: -x- | AL82: -x- | AM82: -x- | AT82: -x- | AU82: -x- | BB82: -x- | BC82: -x-
M83: -x- | N83: -x- | U83: -x- | V83: -x- | AC83: -x- | AD83: -x- | AK83: -x- | AL83: -x- | AM83: -x- | AT83: -x- | AU83: -x- | BB83: -x- | BC83: -x-
M84: -x- | N84: -x- | U84: -x- | V84: -x- | AC84: -x- | AD84: -x- | AK84: -x- | AL84: -x- | AM84: -x- | AT84: -x- | AU84: -x- | BB84: -x- | BC84: -x-
M85: -x- | N85: -x- | U85: -x- | V85: -x- | AC85: -x- | AD85: -x- | AK85: -x- | AL85: -x- | AM85: -x- | AT85: -x- | AU85: -x- | BB85: -x- | BC85: -x-
M86: -x- | N86: -x- | U86: -x- | V86: -x- | AC86: -x- | AD86: -x- | AK86: -x- | AL86: -x- | AM86: -x- | AT86: -x- | AU86: -x- | BB86: -x- | BC86: -x-
M87: -x- | N87: -x- | U87: -x- | V87: -x- | AC87: -x- | AD87: -x- | AK87: -x- | AL87: -x- | AM87: -x- | AT87: -x- | AU87: -x- | BB87: -x- | BC87: -x-
M88: -x- | N88: -x- | U88: -x- | V88: -x- | AC88: -x- | AD88: -x- | AK88: -x- | AL88: -x- | AM88: -x- | AT88: -x- | AU88: -x- | BB88: -x- | BC88: -x-
M89: -x- | N89: -x- | U89: -x- | V89: -x- | AC89: -x- | AD89: -x- | AK89: -x- | AL89: -x- | AM89: -x- | AT89: -x- | AU89: -x- | BB89: -x- | BC89: -x-
M90: -x- | N90: -x- | U90: -x- | V90: -x- | AC90: -x- | AD90: -x- | AK90: -x- | AL90: -x- | AM90: -x- | AT90: -x- | AU90: -x- | BB90: -x- | BC90: -x-
M91: -x- | N91: -x- | U91: -x- | V91: -x- | AC91: -x- | AD91: -x- | AK91: -x- | AL91: -x- | AM91: -x- | AT91: -x- | AU91: -x- | BB91: -x- | BC91: -x-
M92: -x- | N92: -x- | U92: -x- | V92: -x- | AC92: -x- | AD92: -x- | AK92: -x- | AL92: -x- | AM92: -x- | AT92: -x- | AU92: -x- | BB92: -x- | BC92: -x-
M93: -x- | N93: -x- | U93: -x- | V93: -x- | AC93: -x- | AD93: -x- | AK93: -x- | AL93: -x- | AM93: -x- | AT93: -x- | AU93: -x- | BB93: -x- | BC93: -x-
M94: -x- | N94: -x- | U94: -x- | V94: -x- | AC94: -x- | AD94: -x- | AK94: -x- | AL94: -x- | AM94: -x- | AT94: -x- | AU94: -x- | BB94: -x- | BC94: -x-
M95: -x- | N95: -x- | U95: -x- | V95: -x- | AC95: -x- | AD95: -x- | AK95: -x- | AL95: -x- | AM95: -x- | AT95: -x- | AU95: -x- | BB95: -x- | BC95: -x-
M96: -x- | N96: -x- | U96: -x- | V96: -x- | AC96: -x- | AD96: -x- | AK96: -x- | AL96: -x- | AM96: -x- | AT96: -x- | AU96: -x- | BB96: -x- | BC96: -x-
M97: -x- | N97: -x- | U97: -x- | V97: -x- | AC97: -x- | AD97: -x- | AK97: -x- | AL97: -x- | AM97: -x- | AT97: -x- | AU97: -x- | BB97: -x- | BC97: -x-
M98: -x- | N98: -x- | U98: -x- | V98: -x- | AC98: -x- | AD98: -x- | AK98: -x- | AL98: -x- | AM98: -x- | AT98: -x- | AU98: -x- | BB98: -x- | BC98: -x-
M99: -x- | N99: -x- | U99: -x- | V99: -x- | AC99: -x- | AD99: -x- | AK99: -x- | AL99: -x- | AM99: -x- | AT99: -x- | AU99: -x- | BB99: -x- | BC99: -x-
M100: -x- | N100: -x- | U100: -x- | V100: -x- | AC100: -x- | AD100: -x- | AK100: -x- | AL100: -x- | AM100: -x- | AT100: -x- | AU100: -x- | BB100: -x- | BC100: -x-
M101: -x- | N101: -x- | U101: -x- | V101: -x- | AC101: -x- | AD101: -x- | AK101: -x- | AL101: -x- | AM101: -x- | AT101: -x- | AU101: -x- | BB101: -x- | BC101: -x-
M102: -x- | N102: -x- | U102: -x- | V102: -x- | AC102: -x- | AD102: -x- | AK102: -x- | AL102: -x- | AM102: -x- | AT102: -x- | AU102: -x- | BB102: -x- | BC102: -x-
M103: -x- | N103: -x- | U103: -x- | V103: -x- | AC103: -x- | AD103: -x- | AK103: -x- | AL103: -x- | AM103: -x- | AT103: -x- | AU103: -x- | BB103: -x- | BC103: -x-
M104: -x- | N104: -x- | U104: -x- | V104: -x- | AC104: -x- | AD104: -x- | AK104: -x- | AL104: -x- | AM104: -x- | AT104: -x- | AU104: -x- | BB104: -x- | BC104: -x-
M105: -x- | N105: -x- | U105: -x- | V105: -x- | AC105: -x- | AD105: -x- | AK105: -x- | AL105: -x- | AM105: -x- | AT105: -x- | AU105: -x- | BB105: -x- | BC105: -x-
M106: -x- | N106: -x- | U106: -x- | V106: -x- | AC106: -x- | AD106: -x- | AK106: -x- | AL106: -x- | AM106: -x- | AT106: -x- | AU106: -x- | BB106: -x- | BC106: -x-
M107: -x- | N107: -x- | U107: -x- | V107: -x- | AC107: -x- | AD107: -x- | AK107: -x- | AL107: -x- | AM107: -x- | AT107: -x- | AU107: -x- | BB107: -x- | BC107: -x-
M108: -x- | N108: -x- | U108: -x- | V108: -x- | AC108: -x- | AD108: -x- | AK108: -x- | AL108: -x- | AM108: -x- | AT108: -x- | AU108: -x- | BB108: -x- | BC108: -x-
M109: -x- | N109: -x- | U109: -x- | V109: -x- | AC109: -x- | AD109: -x- | AK109: -x- | AL109: -x- | AM109: -x- | AT109: -x- | AU109: -x- | BB109: -x- | BC109: -x-
M110: -x- | N110: -x- | U110: -x- | V110: -x- | AC110: -x- | AD110: -x- | AK110: -x- | AL110: -x- | AM110: -x- | AT110: -x- | AU110: -x- | BB110: -x- | BC110: -x-
M111: -x- | N111: -x- | U111: -x- | V111: -x- | AC111: -x- | AD111: -x- | AK111: -x- | AL111: -x- | AM111: -x- | AT111: -x- | AU111: -x- | BB111: -x- | BC111: -x-
M112: -x- | N112: -x- | U112: -x- | V112: -x- | AC112: -x- | AD112: -x- | AK112: -x- | AL112: -x- | AM112: -x- | AT112: -x- | AU112: -x- | BB112: -x- | BC112: -x-
M113: -x- | N113: -x- | U113: -x- | V113: -x- | AC113: -x- | AD113: -x- | AK113: -x- | AL113: -x- | AM113: -x- | AT113: -x- | AU113: -x- | BB113: -x- | BC113: -x-
M114: -x- | N114: -x- | U114: -x- | V114: -x- | AC114: -x- | AD114: -x- | AK114: -x- | AL114: -x- | AM114: -x- | AT114: -x- | AU114: -x- | BB114: -x- | BC114: -x-
M115: -x- | N115: -x- | U115: -x- | V115: -x- | AC115: -x- | AD115: -x- | AK115: -x- | AL115: -x- | AM115: -x- | AT115: -x- | AU115: -x- | BB115: -x- | BC115: -x-
M116: -x- | N116: -x- | U116: -x- | V116: -x- | AC116: -x- | AD116: -x- | AK116: -x- | AL116: -x- | AM116: -x- | AT116: -x- | AU116: -x- | BB116: -x- | BC116: -x-
M117: -x- | N117: -x- | U117: -x- | V117: -x- | AC117: -x- | AD117: -x- | AK117: -x- | AL117: -x- | AM117: -x- | AT117: -x- | AU117: -x- | BB117: -x- | BC117: -x-
M118: -x- | N118: -x- | U118: -x- | V118: -x- | AC118: -x- | AD118: -x- | AK118: -x- | AL118: -x- | AM118: -x- | AT118: -x- | AU118: -x- | BB118: -x- | BC118: -x-
M119: -x- | N119: -x- | U119: -x- | V119: -x- | AC119: -x- | AD119: -x- | AK119: -x- | AL119: -x- | AM119: -x- | AT119: -x- | AU119: -x- | BB119: -x- | BC119: -x-
M120: -x- | N120: -x- | U120: -x- | V120: -x- | AC120: -x- | AD120: -x- | AK120: -x- | AL120: -x- | AM120: -x- | AT120: -x- | AU120: -x- | BB120: -x- | BC120: -x-
M121: -x- | N121: -x- | U121: -x- | V121: -x- | AC121: -x- | AD121: -x- | AK121: -x- | AL121: -x- | AM121: -x- | AT121: -x- | AU121: -x- | BB121: -x- | BC121: -x-
M122: -x- | N122: -x- | U122: -x- | V122: -x- | AC122: -x- | AD122: -x- | AK122: -x- | AL122: -x- | AM122: -x- | AT122: -x- | AU122: -x- | BB122: -x- | BC122: -x-
M123: -x- | N123: -x- | U123: -x- | V123: -x- | AC123: -x- | AD123: -x- | AK123: -x- | AL123: -x- | AM123: -x- | AT123: -x- | AU123: -x- | BB123: -x- | BC123: -x-
M124: -x- | N124: -x- | U124: -x- | V124: -x- | AC124: -x- | AD124: -x- | AK124: -x- | AL124: -x- | AM124: -x- | AT124: -x- | AU124: -x- | BB124: -x- | BC124: -x-
M125: -x- | N125: -x- | U125: -x- | V125: -x- | AC125: -x- | AD125: -x- | AK125: -x- | AL125: -x- | AM125: -x- | AT125: -x- | AU125: -x- | BB125: -x- | BC125: -x-
M126: -x- | N126: -x- | U126: -x- | V126: -x- | AC126: -x- | AD126: -x- | AK126: -x- | AL126: -x- | AM126: -x- | AT126: -x- | AU126: -x- | BB126: -x- | BC126: -x-
M127: -x- | N127: -x- | U127: -x- | V127: -x- | AC127: -x- | AD127: -x- | AK127: -x- | AL127: -x- | AM127: -x- | AT127: -x- | AU127: -x- | BB127: -x- | BC127: -x-
M128: -x- | N128: -x- | U128: -x- | V128: -x- | AC128: -x- | AD128: -x- | AK128: -x- | AL128: -x- | AM128: -x- | AT128: -x- | AU128: -x- | BB128: -x- | BC128: -x-
M129: -x- | N129: -x- | U129: -x- | V129: -x- | AC129: -x- | AD129: -x- | AK129: -x- | AL129: -x- | AM129: -x- | AT129: -x- | AU129: -x- | BB129: -x- | BC129: -x-
M130: -x- | N130: -x- | U130: -x- | V130: -x- | AC130: -x- | AD130: -x- | AK130: -x- | AL130: -x- | AM130: -x- | AT130: -x- | AU130: -x- | BB130: -x- | BC130: -x-
M131: -x- | N131: -x- | U131: -x- | V131: -x- | AC131: -x- | AD131: -x- | AK131: -x- | AL131: -x- | AM131: -x- | AT131: -x- | AU131: -x- | BB131: -x- | BC131: -x-
M132: -x- | N132: -x- | U132: -x- | V132: -x- | AC132: -x- | AD132: -x- | AK132: -x- | AL132: -x- | AM132: -x- | AT132: -x- | AU132: -x- | BB132: -x- | BC132: -x-
M133: -x- | N133: -x- | U133: -x- | V133: -x- | AC133: -x- | AD133: -x- | AK133: -x- | AL133: -x- | AM133: -x- | AT133: -x- | AU133: -x- | BB133: -x- | BC133: -x-
M134: =IFERROR(MEDIAN(H134:L134),"-x-") -> -x- | N134: =IFERROR(AVERAGEIFS(H134:L134,H134:L134,">0",H134:L134,"<50"),"-x-") -> -x- | U134: =IFERROR(MEDIAN(P134:T134),"-x-") -> -x- | V134: =IFERROR(AVERAGEIFS(P134:T134,P134:T134,">0",P134:T134,"<50"),"-x-") -> -x- | AC134: =IFERROR(MEDIAN(X134:AB134),"-x-") -> -x- | AD134: =IFERROR(AVERAGE(X134:AB134),"-x-") -> -x- | AK134: =IF(MAX(AF134:AJ134)=0,"-x-",MAX(AF134:AJ134)) -> -x- | AL134: =IFERROR(AJ134/AK134,"-x-") -> -x- | AM134: -x- | AT134: =IFERROR(MEDIAN(AO134:AS134),"-x-") -> -x- | AU134: =IFERROR(AVERAGEIFS(AO134:AS134,AO134:AS134,">0",AO134:AS134,"<50"),"-x-") -> -x- | BB134: =IFERROR(MEDIAN(AW134:BA134),"-x-") -> -x- | BC134: =IFERROR(AVERAGEIFS(AW134:BA134,AW134:BA134,">0",AW134:BA134,"<50"),"-x-") -> -x-
M135: -x- | N135: -x- | U135: -x- | V135: -x- | AC135: -x- | AD135: -x- | AK135: -x- | AL135: -x- | AM135: =IFERROR(AVERAGEIFS(AF135:AJ135,AF135:AJ135,">0",AF135:AJ135,"<30"),"-x-") -> -x- | AT135: -x- | AU135: -x- | BB135: -x- | BC135: -x-
M136: -x- | N136: -x- | U136: -x- | V136: -x- | AC136: -x- | AD136: -x- | AK136: -x- | AL136: -x- | AM136: -x- | AT136: -x- | AU136: -x- | BB136: -x- | BC136: -x-
M137: -x- | N137: -x- | U137: -x- | V137: -x- | AC137: -x- | AD137: -x- | AK137: -x- | AL137: -x- | AM137: -x- | AT137: -x- | AU137: -x- | BB137: -x- | BC137: -x-
M138: -x- | N138: -x- | U138: -x- | V138: -x- | AC138: -x- | AD138: -x- | AK138: -x- | AL138: -x- | AM138: -x- | AT138: -x- | AU138: -x- | BB138: -x- | BC138: -x-
M139: -x- | N139: -x- | U139: -x- | V139: -x- | AC139: -x- | AD139: -x- | AK139: -x- | AL139: -x- | AM139: -x- | AT139: -x- | AU139: -x- | BB139: -x- | BC139: -x-
M140: -x- | N140: -x- | U140: -x- | V140: -x- | AC140: -x- | AD140: -x- | AK140: -x- | AL140: -x- | AM140: -x- | AT140: -x- | AU140: -x- | BB140: -x- | BC140: -x-
M141: -x- | N141: -x- | U141: -x- | V141: -x- | AC141: -x- | AD141: -x- | AK141: -x- | AL141: -x- | AM141: -x- | AT141: -x- | AU141: -x- | BB141: -x- | BC141: -x-
M142: -x- | N142: -x- | U142: -x- | V142: -x- | AC142: -x- | AD142: -x- | AK142: -x- | AL142: -x- | AM142: -x- | AT142: -x- | AU142: -x- | BB142: -x- | BC142: -x-
M143: -x- | N143: -x- | U143: -x- | V143: -x- | AC143: -x- | AD143: -x- | AK143: -x- | AL143: -x- | AM143: -x- | AT143: -x- | AU143: -x- | BB143: -x- | BC143: -x-
M144: -x- | N144: -x- | U144: -x- | V144: -x- | AC144: -x- | AD144: -x- | AK144: -x- | AL144: -x- | AM144: -x- | AT144: -x- | AU144: -x- | BB144: -x- | BC144: -x-
M145: -x- | N145: -x- | U145: -x- | V145: -x- | AC145: -x- | AD145: -x- | AK145: -x- | AL145: -x- | AM145: -x- | AT145: -x- | AU145: -x- | BB145: -x- | BC145: -x-
M146: -x- | N146: -x- | U146: -x- | V146: -x- | AC146: -x- | AD146: -x- | AK146: -x- | AL146: -x- | AM146: -x- | AT146: -x- | AU146: -x- | BB146: -x- | BC146: -x-
M147: -x- | N147: -x- | U147: -x- | V147: -x- | AC147: -x- | AD147: -x- | AK147: -x- | AL147: -x- | AM147: -x- | AT147: -x- | AU147: -x- | BB147: -x- | BC147: -x-
M148: -x- | N148: -x- | U148: -x- | V148: -x- | AC148: -x- | AD148: -x- | AK148: -x- | AL148: -x- | AM148: -x- | AT148: -x- | AU148: -x- | BB148: -x- | BC148: -x-
M149: -x- | N149: -x- | U149: -x- | V149: -x- | AC149: -x- | AD149: -x- | AK149: -x- | AL149: -x- | AM149: -x- | AT149: -x- | AU149: -x- | BB149: -x- | BC149: -x-
M150: -x- | N150: -x- | U150: -x- | V150: -x- | AC150: -x- | AD150: -x- | AK150: -x- | AL150: -x- | AM150: -x- | AT150: -x- | AU150: -x- | BB150: -x- | BC150: -x-
M151: -x- | N151: -x- | U151: -x- | V151: -x- | AC151: -x- | AD151: -x- | AK151: -x- | AL151: -x- | AM151: -x- | AT151: -x- | AU151: -x- | BB151: -x- | BC151: -x-
M152: -x- | N152: -x- | U152: -x- | V152: -x- | AC152: -x- | AD152: -x- | AK152: -x- | AL152: -x- | AM152: -x- | AT152: -x- | AU152: -x- | BB152: -x- | BC152: -x-
M153: -x- | N153: -x- | U153: -x- | V153: -x- | AC153: -x- | AD153: -x- | AK153: -x- | AL153: -x- | AM153: -x- | AT153: -x- | AU153: -x- | BB153: -x- | BC153: -x-
M154: -x- | N154: -x- | U154: -x- | V154: -x- | AC154: -x- | AD154: -x- | AK154: -x- | AL154: -x- | AM154: -x- | AT154: -x- | AU154: -x- | BB154: -x- | BC154: -x-
M155: -x- | N155: -x- | U155: -x- | V155: -x- | AC155: -x- | AD155: -x- | AK155: -x- | AL155: -x- | AM155: -x- | AT155: -x- | AU155: -x- | BB155: -x- | BC155: -x-
M156: -x- | N156: -x- | U156: -x- | V156: -x- | AC156: -x- | AD156: -x- | AK156: -x- | AL156: -x- | AM156: -x- | AT156: -x- | AU156: -x- | BB156: -x- | BC156: -x-
M157: -x- | N157: -x- | U157: -x- | V157: -x- | AC157: -x- | AD157: -x- | AK157: -x- | AL157: -x- | AM157: -x- | AT157: -x- | AU157: -x- | BB157: -x- | BC157: -x-
M158: -x- | N158: -x- | U158: -x- | V158: -x- | AC158: -x- | AD158: -x- | AK158: -x- | AL158: -x- | AM158: -x- | AT158: -x- | AU158: -x- | BB158: -x- | BC158: -x-
M159: -x- | N159: -x- | U159: -x- | V159: -x- | AC159: -x- | AD159: -x- | AK159: -x- | AL159: -x- | AM159: -x- | AT159: -x- | AU159: -x- | BB159: -x- | BC159: -x-
M160: -x- | N160: -x- | U160: -x- | V160: -x- | AC160: -x- | AD160: -x- | AK160: -x- | AL160: -x- | AM160: -x- | AT160: -x- | AU160: -x- | BB160: -x- | BC160: -x-
M161: -x- | N161: -x- | U161: -x- | V161: -x- | AC161: -x- | AD161: -x- | AK161: -x- | AL161: -x- | AM161: -x- | AT161: -x- | AU161: -x- | BB161: -x- | BC161: -x-
M162: -x- | N162: -x- | U162: -x- | V162: -x- | AC162: -x- | AD162: -x- | AK162: -x- | AL162: -x- | AM162: -x- | AT162: -x- | AU162: -x- | BB162: -x- | BC162: -x-
M163: -x- | N163: -x- | U163: -x- | V163: -x- | AC163: -x- | AD163: -x- | AK163: -x- | AL163: -x- | AM163: -x- | AT163: -x- | AU163: -x- | BB163: -x- | BC163: -x-
M164: -x- | N164: -x- | U164: -x- | V164: -x- | AC164: -x- | AD164: -x- | AK164: -x- | AL164: -x- | AM164: -x- | AT164: -x- | AU164: -x- | BB164: -x- | BC164: -x-
M165: -x- | N165: -x- | U165: -x- | V165: -x- | AC165: -x- | AD165: -x- | AK165: -x- | AL165: -x- | AM165: -x- | AT165: -x- | AU165: -x- | BB165: -x- | BC165: -x-
M166: -x- | N166: -x- | U166: -x- | V166: -x- | AC166: -x- | AD166: -x- | AK166: -x- | AL166: -x- | AM166: -x- | AT166: -x- | AU166: -x- | BB166: -x- | BC166: -x-
M167: -x- | N167: -x- | U167: -x- | V167: -x- | AC167: -x- | AD167: -x- | AK167: -x- | AL167: -x- | AM167: -x- | AT167: -x- | AU167: -x- | BB167: -x- | BC167: -x-
M168: -x- | N168: -x- | U168: -x- | V168: -x- | AC168: -x- | AD168: -x- | AK168: -x- | AL168: -x- | AM168: -x- | AT168: -x- | AU168: -x- | BB168: -x- | BC168: -x-
M169: -x- | N169: -x- | U169: -x- | V169: -x- | AC169: -x- | AD169: -x- | AK169: -x- | AL169: -x- | AM169: -x- | AT169: -x- | AU169: -x- | BB169: -x- | BC169: -x-
M170: -x- | N170: -x- | U170: -x- | V170: -x- | AC170: -x- | AD170: -x- | AK170: -x- | AL170: -x- | AM170: -x- | AT170: -x- | AU170: -x- | BB170: -x- | BC170: -x-
M171: -x- | N171: -x- | U171: -x- | V171: -x- | AC171: -x- | AD171: -x- | AK171: -x- | AL171: -x- | AM171: -x- | AT171: -x- | AU171: -x- | BB171: -x- | BC171: -x-
M172: -x- | N172: -x- | U172: -x- | V172: -x- | AC172: -x- | AD172: -x- | AK172: -x- | AL172: -x- | AM172: -x- | AT172: -x- | AU172: -x- | BB172: -x- | BC172: -x-
M173: -x- | N173: -x- | U173: -x- | V173: -x- | AC173: -x- | AD173: -x- | AK173: -x- | AL173: -x- | AM173: -x- | AT173: -x- | AU173: -x- | BB173: -x- | BC173: -x-
M174: -x- | N174: -x- | U174: -x- | V174: -x- | AC174: -x- | AD174: -x- | AK174: -x- | AL174: -x- | AM174: -x- | AT174: -x- | AU174: -x- | BB174: -x- | BC174: -x-
M175: -x- | N175: -x- | U175: -x- | V175: -x- | AC175: -x- | AD175: -x- | AK175: -x- | AL175: -x- | AM175: -x- | AT175: -x- | AU175: -x- | BB175: -x- | BC175: -x-
M176: -x- | N176: -x- | U176: -x- | V176: -x- | AC176: -x- | AD176: -x- | AK176: -x- | AL176: -x- | AM176: -x- | AT176: -x- | AU176: -x- | BB176: -x- | BC176: -x-
M177: -x- | N177: -x- | U177: -x- | V177: -x- | AC177: -x- | AD177: -x- | AK177: -x- | AL177: -x- | AM177: -x- | AT177: -x- | AU177: -x- | BB177: -x- | BC177: -x-
M178: -x- | N178: -x- | U178: -x- | V178: -x- | AC178: -x- | AD178: -x- | AK178: -x- | AL178: -x- | AM178: -x- | AT178: -x- | AU178: -x- | BB178: -x- | BC178: -x-
M179: -x- | N179: -x- | U179: -x- | V179: -x- | AC179: -x- | AD179: -x- | AK179: -x- | AL179: -x- | AM179: -x- | AT179: -x- | AU179: -x- | BB179: -x- | BC179: -x-
M180: -x- | N180: -x- | U180: -x- | V180: -x- | AC180: -x- | AD180: -x- | AK180: -x- | AL180: -x- | AM180: -x- | AT180: -x- | AU180: -x- | BB180: -x- | BC180: -x-
M181: -x- | N181: -x- | U181: -x- | V181: -x- | AC181: -x- | AD181: -x- | AK181: -x- | AL181: -x- | AM181: -x- | AT181: -x- | AU181: -x- | BB181: -x- | BC181: -x-
M182: -x- | N182: -x- | U182: -x- | V182: -x- | AC182: -x- | AD182: -x- | AK182: -x- | AL182: -x- | AM182: -x- | AT182: -x- | AU182: -x- | BB182: -x- | BC182: -x-
M183: -x- | N183: -x- | U183: -x- | V183: -x- | AC183: -x- | AD183: -x- | AK183: -x- | AL183: -x- | AM183: -x- | AT183: -x- | AU183: -x- | BB183: -x- | BC183: -x-
M184: -x- | N184: -x- | U184: -x- | V184: -x- | AC184: -x- | AD184: -x- | AK184: -x- | AL184: -x- | AM184: -x- | AT184: -x- | AU184: -x- | BB184: -x- | BC184: -x-
M185: -x- | N185: -x- | U185: -x- | V185: -x- | AC185: -x- | AD185: -x- | AK185: -x- | AL185: -x- | AM185: -x- | AT185: -x- | AU185: -x- | BB185: -x- | BC185: -x-
M186: -x- | N186: -x- | U186: -x- | V186: -x- | AC186: -x- | AD186: -x- | AK186: -x- | AL186: -x- | AM186: -x- | AT186: -x- | AU186: -x- | BB186: -x- | BC186: -x-
M187: -x- | N187: -x- | U187: -x- | V187: -x- | AC187: -x- | AD187: -x- | AK187: -x- | AL187: -x- | AM187: -x- | AT187: -x- | AU187: -x- | BB187: -x- | BC187: -x-
M188: -x- | N188: -x- | U188: -x- | V188: -x- | AC188: -x- | AD188: -x- | AK188: -x- | AL188: -x- | AM188: -x- | AT188: -x- | AU188: -x- | BB188: -x- | BC188: -x-
M189: -x- | N189: -x- | U189: -x- | V189: -x- | AC189: -x- | AD189: -x- | AK189: -x- | AL189: -x- | AM189: -x- | AT189: -x- | AU189: -x- | BB189: -x- | BC189: -x-
M190: -x- | N190: -x- | U190: -x- | V190: -x- | AC190: -x- | AD190: -x- | AK190: -x- | AL190: -x- | AM190: -x- | AT190: -x- | AU190: -x- | BB190: -x- | BC190: -x-
M191: -x- | N191: -x- | U191: -x- | V191: -x- | AC191: -x- | AD191: -x- | AK191: -x- | AL191: -x- | AM191: -x- | AT191: -x- | AU191: -x- | BB191: -x- | BC191: -x-
M192: -x- | N192: -x- | U192: -x- | V192: -x- | AC192: -x- | AD192: -x- | AK192: -x- | AL192: -x- | AM192: -x- | AT192: -x- | AU192: -x- | BB192: -x- | BC192: -x-
M193: -x- | N193: -x- | U193: -x- | V193: -x- | AC193: -x- | AD193: -x- | AK193: -x- | AL193: -x- | AM193: -x- | AT193: -x- | AU193: -x- | BB193: -x- | BC193: -x-
M194: -x- | N194: -x- | U194: -x- | V194: -x- | AC194: -x- | AD194: -x- | AK194: -x- | AL194: -x- | AM194: -x- | AT194: -x- | AU194: -x- | BB194: -x- | BC194: -x-
M195: -x- | N195: -x- | U195: -x- | V195: -x- | AC195: -x- | AD195: -x- | AK195: -x- | AL195: -x- | AM195: -x- | AT195: -x- | AU195: -x- | BB195: -x- | BC195: -x-
M196: -x- | N196: -x- | U196: -x- | V196: -x- | AC196: -x- | AD196: -x- | AK196: -x- | AL196: -x- | AM196: -x- | AT196: -x- | AU196: -x- | BB196: -x- | BC196: -x-
M197: -x- | N197: -x- | U197: -x- | V197: -x- | AC197: -x- | AD197: -x- | AK197: -x- | AL197: -x- | AM197: -x- | AT197: -x- | AU197: -x- | BB197: -x- | BC197: -x-
M198: =IFERROR(MEDIAN(H198:L198),"-x-") -> -x- | N198: =IFERROR(AVERAGEIFS(H198:L198,H198:L198,">0",H198:L198,"<50"),"-x-") -> -x- | U198: =IFERROR(MEDIAN(P198:T198),"-x-") -> -x- | V198: =IFERROR(AVERAGEIFS(P198:T198,P198:T198,">0",P198:T198,"<50"),"-x-") -> -x- | AC198: =IFERROR(MEDIAN(X198:AB198),"-x-") -> -x- | AD198: =IFERROR(AVERAGE(X198:AB198),"-x-") -> -x- | AK198: =IF(MAX(AF198:AJ198)=0,"-x-",MAX(AF198:AJ198)) -> -x- | AL198: =IFERROR(AJ198/AK198,"-x-") -> -x- | AM198: -x- | AT198: =IFERROR(MEDIAN(AO198:AS198),"-x-") -> -x- | AU198: =IFERROR(AVERAGEIFS(AO198:AS198,AO198:AS198,">0",AO198:AS198,"<50"),"-x-") -> -x- | BB198: =IFERROR(MEDIAN(AW198:BA198),"-x-") -> -x- | BC198: =IFERROR(AVERAGEIFS(AW198:BA198,AW198:BA198,">0",AW198:BA198,"<50"),"-x-") -> -x-
M199: =IFERROR(MEDIAN(H199:L199),"-x-") -> -x- | N199: -x- | U199: =IFERROR(MEDIAN(P199:T199),"-x-") -> -x- | V199: -x- | AC199: =IFERROR(MEDIAN(X199:AB199),"-x-") -> -x- | AD199: -x- | AK199: =IF(MAX(AF199:AJ199)=0,"-x-",MAX(AF199:AJ199)) -> -x- | AL199: =IFERROR(AJ199/AK199,"-x-") -> -x- | AM199: =IFERROR(AVERAGEIFS(AF199:AJ199,AF199:AJ199,">0",AF199:AJ199,"<30"),"-x-") -> -x- | AT199: =IFERROR(MEDIAN(AO199:AS199),"-x-") -> -x- | AU199: -x- | BB199: =IFERROR(MEDIAN(AW199:BA199),"-x-") -> -x- | BC199: -x-
M200: =IFERROR(MEDIAN(H200:L200),"-x-") -> -x- | N200: -x- | U200: =IFERROR(MEDIAN(P200:T200),"-x-") -> -x- | V200: -x- | AC200: =IFERROR(MEDIAN(X200:AB200),"-x-") -> -x- | AD200: -x- | AK200: =IF(MAX(AF200:AJ200)=0,"-x-",MAX(AF200:AJ200)) -> -x- | AL200: =IFERROR(AJ200/AK200,"-x-") -> -x- | AM200: -x- | AT200: =IFERROR(MEDIAN(AO200:AS200),"-x-") -> -x- | AU200: -x- | BB200: =IFERROR(MEDIAN(AW200:BA200),"-x-") -> -x- | BC200: -x-

Sheet Dividends
B2: Date: | C2: =Factsheet!AC2 -> 2020-08-06 | D2: ← Do not modify
F3: DIVIDENDS ANNUALIZED
F5: =EOMONTH(H5,-12) -> 2016-12-31 | H5: =EOMONTH(J5,-12) -> 2017-12-31 | J5: =EOMONTH(L5,-12) -> 2018-12-31 | L5: =DATE(YEAR(N5)-1,12,31) -> 2019-12-31 | N5: =$C$2 -> 2020-08-06 | P5: Last 5 Years Indicators
B6: =_xll.ECOSECURITIES("stock","active","true","MEX",,,,"SECTOR NAICS="&SUBSTITUTE(_xll.ECONOMATICA(Factsheet!B4,"SECTOR NAICS"),",","\,")) -> Codigo | C6: =_xll.ECONOMATICA($B$7:$B$195,"name") -> Nombre | D6: =_xll.ECONOMATICA($B$7:$B$198,"SECTOR NAICS",,,,,,,,,"SECTOR NAICS") -> SECTOR NAICS | E6: =_xll.ECONOMATICA($B$7:$B$198,"Ticker",,,,,,,,,"Ticker") -> Ticker | F6: =_xll.ECONOMATICA($B$7:$B$195,"Div Yld (start)",,F5,,,"usd","DECIMAL",,,"% Dividend Yield") -> % Dividend Yield | G6: =_xll.ECONOMATICA($B$7:$B$195,"Divid per Share",,F5,,,"usd",,,,"$") -> $ | H6: =_xll.ECONOMATICA($B$7:$B$195,"Div Yld (start)",,H5,,,"usd","DECIMAL",,,"% Dividend Yield") -> % Dividend Yield | I6: =_xll.ECONOMATICA($B$7:$B$195,"Divid per Share",,H5,,,"USD",,,,"$") -> $ | J6: =_xll.ECONOMATICA($B$7:$B$195,"Div Yld (start)",,J5,,,"USD","DECIMAL",,,"% Dividend Yield") -> % Dividend Yield | K6: =_xll.ECONOMATICA($B$7:$B$195,"Divid per Share",,J5,,,"USD",,,,"$") -> $ | L6: =_xll.ECONOMATICA($B$7:$B$195,"Div Yld (start)",,L5,,,"USD","DECIMAL",,,"% Dividend Yield") -> % Dividend Yield | M6: =_xll.ECONOMATICA($B$7:$B$195,"Divid per Share",,L5,,,"USD",,,,"$") -> $ | N6: =_xll.ECONOMATICA($B$7:$B$195,"Div Yld (start)",,N5,,,"USD","DECIMAL",,,"% Dividend Yield") -> % Dividend Yield | O6: =_xll.ECONOMATICA($B$7:$B$195,"Divid per Share",,N5,,,"USD",,,,"$") -> $ | P6: AVG | Q6: Median | R6: Max | S6: Min
B7: AMXL<XMEX> | C7: America Movil | D7: Telecomunicaciones | E7: AMXL | F7: 0.02155805328 | G7: 0.01484756988 | H7: 0.03832640657 | I7: 0.02373920006 | J7: 0.01915040709 | K7: 0.01650821599 | L7: 0.025616371 | M7: 0.0182106285 | N7: 0.02545601671 | O7: 0.01735186553 | P7: =IF(MAX(,,F7,H7,J7,L7,N7)=0,"",AVERAGE(,,F7,H7,J7,L7,N7)) -> 0.01858675066 | Q7: =IF(MAX(,,F7,H7,J7,L7,N7)=0,"",MEDIAN(,,F7,H7,J7,L7,N7)) -> 0.02155805328 | R7: =IF(MAX(,,F7,H7,J7,L7,N7)=0,"",MAX(,,F7,H7,J7,L7,N7)) -> 0.03832640657 | S7: =IF(MAX(,,F7,H7,J7,L7,N7)=0,"",MIN(,,F7,H7,J7,L7,N7)) -> 0
B8: AXTELCPO<XMEX> | C8: Axtel | D8: Telecomunicaciones | E8: AXTELCPO | F8: 0 | G8: 0 | H8: 0 | I8: 0 | J8: 0 | K8: 0 | L8: 0 | M8: 0 | N8: 0 | O8: 0 | Q8: =IF(MAX(,,F8,H8,J8,L8,N8)=0,"",MEDIAN(,,F8,H8,J8,L8,N8)) -> 
B9: CABLECPO<XMEX> | C9: Cablevision | D9: Telecomunicaciones | E9: CABLECPO | F9: 0 | G9: 0 | H9: 0 | I9: 0 | K9: 0 | M9: 0 | O9: 0
B10: FSITES20<XMEX> | C10: Fsites | D10: Telecomunicaciones | E10: FSITES20
B11: MAXCOMA<XMEX> | C11: Maxcom Telecom | D11: Telecomunicaciones | E11: MAXCOMA | H11: 0.03511227736 | I11: 0.01256722344 | J11: 0 | K11: 0 | L11: 0 | M11: 0 | N11: 0 | O11: 0 | P11: 0.005852046226 | Q11: 0 | R11: 0.03511227736 | S11: 0
B12: MEGACPO<XMEX> | C12: Megacable Holdings | D12: Telecomunicaciones | E12: MEGACPO | F12: 0.03977448376 | G12: 0.07400917496 | H12: 0.05153624817 | I12: 0.08674187866 | J12: 0.04439982587 | K12: 0.0903333198 | L12: 0.05112933504 | M12: 0.1146632163 | N12: 0.01911147443 | O12: 0.03904741848 | P12: 0.0294216239 | Q12: 0.03977448376 | R12: 0.05153624817 | S12: 0
B13: RCENTROA<XMEX> | C13: Radio Centro | D13: Telecomunicaciones | E13: RCENTROA | F13: 0 | G13: 0 | I13: 0 | J13: 0 | K13: 0 | L13: 0 | M13: 0 | N13: 0 | O13: 0
B14: SITESB-1<XMEX> | C14: Telesites | D14: Telecomunicaciones | E14: SITESB-1 | F14: 0 | G14: 0 | H14: 0 | I14: 0 | J14: 0 | K14: 0 | L14: 0 | M14: 0 | N14: 0 | O14: 0
B15: TLEVISACPO<XMEX> | C15: Televisa Gpo | D15: Telecomunicaciones | E15: TLEVISACPO | F15: 0.003468047963 | G15: 0.0001621207994 | H15: 0.004528697358 | I15: 0.0001624156685 | J15: 0.004774137989 | K15: 0.0001526937703 | L15: 0.007273633994 | M15: 0.0001560902052 | N15: 0 | O15: 0 | P15: 0.002863502472 | Q15: 0.003468047963 | R15: 0.007273633994 | S15: 0
B16: AZTECACPO<XMEX> | C16: TV Azteca | D16: Telecomunicaciones | E16: AZTECACPO | F16: 0.009293741364 | G16: 0.0004328426043 | H16: 0.008262781167 | I16: 0.0004341225382 | J16: 0.006873530534 | K16: 0.0004078299211 | L16: 0 | M16: 0 | N16: 0.001159635121 | O16: 2.560018302e-05 | P16: 0.003655669741 | Q16: 0.001159635121 | R16: 0.009293741364 | S16: 0
P39: =IF(MAX(,,F39,H39,J39,L39,N39)=0,"",AVERAGE(,,F39,H39,J39,L39,N39)) ->  | R39: =IF(MAX(,,F39,H39,J39,L39,N39)=0,"",MAX(,,F39,H39,J39,L39,N39)) ->  | S39: =IF(MAX(,,F39,H39,J39,L39,N39)=0,"",MIN(,,F39,H39,J39,L39,N39)) -> 
P71: =IF(MAX(,,F71,H71,J71,L71,N71)=0,"",AVERAGE(,,F71,H71,J71,L71,N71)) ->  | R71: =IF(MAX(,,F71,H71,J71,L71,N71)=0,"",MAX(,,F71,H71,J71,L71,N71)) ->  | S71: =IF(MAX(,,F71,H71,J71,L71,N71)=0,"",MIN(,,F71,H71,J71,L71,N71)) -> 
Q72: =IF(MAX(,,F72,H72,J72,L72,N72)=0,"",MEDIAN(,,F72,H72,J72,L72,N72)) -> 
P103: =IF(MAX(,,F103,H103,J103,L103,N103)=0,"",AVERAGE(,,F103,H103,J103,L103,N103)) ->  | R103: =IF(MAX(,,F103,H103,J103,L103,N103)=0,"",MAX(,,F103,H103,J103,L103,N103)) ->  | S103: =IF(MAX(,,F103,H103,J103,L103,N103)=0,"",MIN(,,F103,H103,J103,L103,N103)) -> 
P135: =IF(MAX(,,F135,H135,J135,L135,N135)=0,"",AVERAGE(,,F135,H135,J135,L135,N135)) ->  | R135: =IF(MAX(,,F135,H135,J135,L135,N135)=0,"",MAX(,,F135,H135,J135,L135,N135)) ->  | S135: =IF(MAX(,,F135,H135,J135,L135,N135)=0,"",MIN(,,F135,H135,J135,L135,N135)) -> 
Q136: =IF(MAX(,,F136,H136,J136,L136,N136)=0,"",MEDIAN(,,F136,H136,J136,L136,N136)) -> 
P167: =IF(MAX(,,F167,H167,J167,L167,N167)=0,"",AVERAGE(,,F167,H167,J167,L167,N167)) ->  | R167: =IF(MAX(,,F167,H167,J167,L167,N167)=0,"",MAX(,,F167,H167,J167,L167,N167)) ->  | S167: =IF(MAX(,,F167,H167,J167,L167,N167)=0,"",MIN(,,F167,H167,J167,L167,N167)) -> 

Sheet Base Factsheet
A1: Please do not modify - Pivot table
A2: Start date: | B2: =_xll.ECONOMATICA(B5,"Series Start Date") -> 2001-02-07
A3: Period: | B3: =IF(Factsheet!AC14="DESDE O INÍCIO",B2,Factsheet!AC14) -> 12M | C3: Maximum: | D3: =ROUNDUP(MAX($B$8:$D$10000),-1) -> 140
A4: End Date: | B4: =Factsheet!AC2:AC2 -> 2020-08-06 | C4: Minimum: | D4: =ROUNDDOWN(MIN($B$8:$D$10000),-1) -> 70 | F4: EMISORAS BMV
A5: Ticker: | B5: =Factsheet!B4 -> AMXL<XMEX> | C5: =AtualizarLimitesGrafico("Factsheet","Base100",D4,D3) -> Base100, Min:70, Max:140
A7: Date | B7: =_xll.ECONOMATICA(B5,"ticker") -> AMXL | C7: S&P 500 | D7: DJIA | F7: AA1CK17<XMEX>
A8: =_xll.ECONOMATICA(B5,"Close",,"D-0",B3,"D",,,TRUE,FALSE,,{"def.defdef=6"}) -> 2019-08-06 | B8: 100 | C8: =_xll.ECONOMATICA("S&P 500","Close",,"D-0",B3,"D",,,FALSE,FALSE,,{"def.defdef=6"}) -> 100 | D8: =_xll.ECONOMATICA("DJIA","Close",,"D-0",B3,"D",,,FALSE,FALSE,,{"def.defdef=6"}) -> 100 | F8: AA2CPI18<XMEX>
A9: 2019-08-07 | B9: 102.6433674 | C9: 100.076689 | D9: 99.91375177 | F9: AC<XMEX>
A10: 2019-08-08 | B10: 104.2101854 | C10: 101.9543544 | D10: 101.3395176 | F10: ACCELSAB<XMEX>
A11: 2019-08-09 | B11: 102.9213156 | C11: 101.279769 | D11: 100.990875 | F11: ACONCK14<XMEX>
A12: 2019-08-12 | B12: 99.49998323 | C12: 100.0322718 | D12: 99.48873433 | F12: ACTINVRB<XMEX>
A13: 2019-08-13 | B13: 99.72277051 | C13: 101.5459249 | D13: 100.9619463 | F13: ADMEXCK09<XMEX>
A14: 2019-08-14 | B14: 97.34705407 | C14: 98.57136413 | D14: 97.88663026 | F14: AEROMEX<XMEX>
A15: 2019-08-15 | B15: 95.5544103 | C15: 98.8142704 | D15: 98.2706942 | F15: AGCCK12<XMEX>
A16: 2019-08-16 | B16: 97.91865187 | C16: 100.2397832 | D16: 99.44866444 | F16: AGUA<XMEX>
A17: 2019-08-19 | B17: 96.39502193 | C17: 101.4532735 | D17: 100.4082672 | F17: AHMSA<XMEX>
A18: 2019-08-20 | B18: 96.55441836 | C18: 100.6502948 | D18: 99.7422926 | F18: AINDACK18<XMEX>
A19: 2019-08-21 | B19: 98.25145801 | C19: 101.4803402 | D19: 100.6654368 | F19: ALEATIC<XMEX>
A20: 2019-08-22 | B20: 98.51293766 | C20: 101.4289829 | D20: 100.8556439 | F20: ALFAA<XMEX>
A21: 2019-08-23 | B21: 97.01347549 | C21: 98.79726696 | D21: 98.46090132 | F21: ALLVPCK18<XMEX>
A22: 2019-08-26 | B22: 97.56443599 | C22: 99.88236396 | D22: 99.49791621 | F22: ALPEKA<XMEX>
A23: 2019-08-27 | B23: 100.8928331 | C23: 99.56242171 | D23: 99.03332831 | F23: ALSEA<XMEX>
A24: 2019-08-28 | B24: 101.726761 | C24: 100.2141045 | D24: 100.025279 | F24: AMBCK10<XMEX>
A25: 2019-08-29 | B25: 104.1593158 | C25: 101.4855453 | D25: 101.2782794 | F25: AMICK18<XMEX>
A26: 2019-08-30 | B26: 107.1616835 | C26: 101.550783 | D26: 101.4359082 | F26: AMXA<XMEX>
A27: 2019-09-02 | B27: 104.1679554 | F27: AMXL<XMEX>
A28: 2019-09-03 | B28: 105.093484 | C28: 100.8501719 | D28: 100.3399986 | F28: ARA<XMEX>
A29: 2019-09-04 | B29: 107.0956933 | C29: 101.9435972 | D29: 101.2522321 | F29: ARISTOSA<XMEX>
A30: 2019-09-05 | B30: 106.2829699 | C30: 103.2698654 | D30: 102.6839911 | F30: ARTCK13<XMEX>
A31: 2019-09-06 | B31: 106.1159824 | C31: 103.3639048 | D31: 102.9502657 | F31: ARTCK13-2<XMEX>
A32: 2019-09-09 | B32: 106.2381746 | C32: 103.3541886 | D32: 103.0964459 | F32: ARTH4CK15<XMEX>
A33: 2019-09-10 | B33: 105.2858432 | C33: 103.3875014 | D33: 103.3804311 | F33: ARTH4CK15-2<XMEX>
A34: 2019-09-11 | B34: 106.0445977 | C34: 104.1349587 | D34: 104.2527868 | F34: ARTH4CK18<XMEX>
A35: 2019-09-12 | B35: 106.0270845 | C35: 104.4347745 | D35: 104.4293172 | F35: ARTH5CK17<XMEX>
A36: 2019-09-13 | B36: 108.1736145 | C36: 104.3591265 | D36: 104.5717324 | F36: ARTHACK10<XMEX>
A37: 2019-09-16 | C37: 104.0318971 | D37: 104.0235087 | F37: ASURB<XMEX>
A38: 2019-09-17 | B38: 110.86194 | C38: 104.300482 | D38: 104.1540528 | F38: AUTLANB<XMEX>
A39: 2019-09-18 | B39: 110.5243551 | C39: 104.3362239 | D39: 104.293433 | F39: AXIS2CK14<XMEX>
A40: 2019-09-19 | B40: 111.4763047 | C40: 104.338306 | D40: 104.0925457 | F40: AXIS2CK14-2<XMEX>
A41: 2019-09-20 | B41: 111.8703368 | C41: 103.8275088 | D41: 103.4789347 | F41: AXISCK12<XMEX>
A42: 2019-09-23 | B42: 110.6741869 | C42: 103.8170985 | D42: 103.5375604 | F42: AXTELCPO<XMEX>
A43: 2019-09-24 | B43: 108.2642051 | C43: 102.943677 | D43: 102.9898746 | F43: AZTECACPO<XMEX>
A44: 2019-09-25 | B44: 108.7312683 | C44: 103.5776623 | D44: 103.6158562 | F44: BACHOCOB<XMEX>
A45: 2019-09-26 | B45: 108.9286546 | C45: 103.3271219 | D45: 103.3186935 | F45: BAFARB<XMEX>
A46: 2019-09-27 | B46: 107.6387683 | C46: 102.7767657 | D46: 103.0490382 | F46: BALAMCK16<XMEX>
A47: 2019-09-30 | B47: 108.8326548 | C47: 103.294503 | D47: 103.4260332 | F47: BALAMCK18<XMEX>
A48: 2019-10-01 | B48: 108.8833835 | C48: 102.0261853 | D48: 102.1012297 | F48: BBAJIOO<XMEX>
A49: 2019-10-02 | B49: 106.7765703 | C49: 100.2026532 | D49: 100.188632 | F49: BCCK17<XMEX>
A50: 2019-10-03 | B50: 106.887377 | C50: 101.0014678 | D50: 100.6589442 | F50: BCCK18<XMEX>
A51: 2019-10-04 | B51: 111.8759685 | C51: 102.4363499 | D51: 102.0866693 | F51: BEVIDESA<XMEX>
A52: 2019-10-07 | B52: 110.1475137 | C52: 101.9786451 | D52: 101.7230437 | F52: BEVIDESB<XMEX>
A53: 2019-10-08 | B53: 109.1446432 | C53: 100.3917731 | D53: 100.5167979 | F53: BIMBOA<XMEX>
A54: 2019-10-09 | B54: 109.4537677 | C54: 101.3057947 | D54: 101.2158887 | F54: BLKAGPI18D<XMEX>
A55: 2019-10-10 | B55: 112.0826834 | C55: 101.9557425 | D55: 101.7946931 | F55: BLKCPI18<XMEX>
A56: 2019-10-11 | B56: 113.0560056 | C56: 103.0675592 | D56: 103.0152688 | F56: BOLSAA<XMEX>
A57: 2019-10-14 | B57: 112.626069 | C57: 102.9280616 | D57: 102.9114636 | F57: BSMXB<XMEX>
A58: 2019-10-15 | B58: 111.9412667 | C58: 103.952779 | D58: 103.8236587 | F58: BXMX2PI19D<XMEX>
A59: 2019-10-16 | B59: 116.2887474 | C59: 103.7449207 | D59: 103.735989 | F59: BXMXPI18-2D<XMEX>
A60: 2019-10-17 | B60: 117.6076174 | C60: 104.0315501 | D60: 103.8278078 | F60: BXMXPI18-3D<XMEX>
A61: 2019-10-18 | B61: 117.8283984 | C61: 103.6238145 | D61: 102.8455385 | F61: BXMXPI18D<XMEX>
A62: 2019-10-21 | B62: 119.4042755 | C62: 104.3358769 | D62: 103.066211 | F62: CABLECPO<XMEX>
A63: 2019-10-22 | B63: 118.9456735 | C63: 103.9635363 | D63: 102.9143065 | F63: CADUA<XMEX>
A64: 2019-10-23 | B64: 119.7367779 | C64: 104.2595349 | D64: 103.0904527 | F64: CARZACK18<XMEX>
A65: 2019-10-24 | B65: 120.7437287 | C65: 104.4597591 | D65: 102.981269 | F65: CEMEXCPO<XMEX>
A66: 2019-10-25 | B66: 119.6272103 | C66: 104.8851921 | D66: 103.5672575 | F66: CERAMICB<XMEX>
A67: 2019-10-28 | B67: 120.2630752 | C67: 105.4705962 | D67: 104.0769096 | F67: CHDRAUIB<XMEX>
A68: 2019-10-29 | B68: 119.0263585 | C68: 105.3828029 | D68: 104.002763 | F68: CI3CK11<XMEX>
A69: 2019-10-30 | B69: 118.3479673 | C69: 105.7256478 | D69: 104.4456064 | F69: CIDMEGA<XMEX>
A70: 2019-10-31 | B70: 116.478468 | C70: 105.4060525 | D70: 103.9059883 | F70: CIEB<XMEX>
A71: 2019-11-01 | B71: 118.7103366 | C71: 106.4245238 | D71: 105.0628671 | F71: CLNYCK15<XMEX>
A72: 2019-11-04 | B72: 119.4166595 | C72: 106.818726 | D72: 105.5037127 | F72: CLNYCK15-2<XMEX>
A73: 2019-11-05 | B73: 117.2111086 | C73: 106.6920677 | D73: 105.6209642 | F73: CMOCTEZ<XMEX>
A74: 2019-11-06 | B74: 117.6218457 | C74: 106.7670217 | D74: 105.6206953 | F74: CMRB<XMEX>
A75: 2019-11-07 | B75: 118.6269626 | C75: 107.0585092 | D75: 106.3208234 | F75: COLLADO<XMEX>
A76: 2019-11-08 | B76: 118.3219316 | C76: 107.3326463 | D76: 106.3344618 | F76: CONVERA<XMEX>
A77: 2019-11-11 | B77: 118.8517202 | C77: 107.1220118 | D77: 106.3849429 | F77: CREAL<XMEX>
A78: 2019-11-12 | B78: 117.2525634 | C78: 107.2896171 | D78: 106.3849429 | F78: CS2CK15<XMEX>
A79: 2019-11-13 | B79: 115.7509074 | C79: 107.3659591 | D79: 106.738772 | F79: CSCK12<XMEX>
A80: 2019-11-14 | B80: 116.5496401 | C80: 107.4558344 | D80: 106.7325099 | F80: CUERVO<XMEX>
A81: 2019-11-15 | B81: 117.9406645 | C81: 108.2827568 | D81: 107.5889605 | F81: CULTIBAB<XMEX>
A82: 2019-11-18 | C82: 108.3372372 | D82: 107.7093239 | F82: CYDSASAA<XMEX>
A83: 2019-11-19 | B83: 115.5731656 | C83: 108.2730405 | D83: 107.3166927 | F83: DAIVCK16<XMEX>
A84: 2019-11-20 | B84: 116.3597135 | C84: 107.866346 | D84: 106.8828392 | F84: DALUSCK16<XMEX>
A85: 2019-11-21 | B85: 116.1452032 | C85: 107.6956176 | D85: 106.672309 | F85: DANHOS13<XMEX>
A86: 2019-11-22 | B86: 116.6179649 | C86: 107.9298487 | D86: 107.0923321 | F86: DATCK14<XMEX>
A87: 2019-11-25 | B87: 116.5583653 | C87: 108.7401146 | D87: 107.8255381 | F87: DATPCK14<XMEX>
A88: 2019-11-26 | B88: 114.6101666 | C88: 108.9788567 | D88: 108.0376434 | F88: DELTACK18<XMEX>
A89: 2019-11-27 | B89: 114.2112332 | C89: 109.4337855 | D89: 108.200228 | F89: DINEA<XMEX>
A90: 2019-11-28 | B90: 113.9165517 | F90: DINEB<XMEX>
A91: 2019-11-29 | B91: 113.9046985 | C91: 108.9948192 | D91: 107.7676807 | F91: EDUCA18<XMEX>
A92: 2019-12-02 | B92: 111.6458124 | C92: 108.0540779 | D92: 106.736659 | F92: ELEKTRA<XMEX>
A93: 2019-12-03 | B93: 110.4551049 | C93: 107.3368104 | D93: 105.6600736 | F93: ELEMENT<XMEX>
A94: 2019-12-04 | B94: 111.3106944 | C94: 108.0155599 | D94: 106.2247018 | F94: EMXCK11<XMEX>
A95: 2019-12-05 | B95: 112.5856039 | C95: 108.1776131 | D95: 106.3323104 | F95: EXI2CK17<XMEX>
A96: 2019-12-06 | B96: 112.074894 | C96: 109.1658946 | D96: 107.6280316 | F96: EXICK14<XMEX>
A97: 2019-12-09 | B97: 111.6228152 | C97: 108.8206207 | D97: 107.2228762 | F97: EXICK16-2<XMEX>
A98: 2019-12-10 | B98: 112.8218674 | C98: 108.7012496 | D98: 107.115767 | F98: EXICPI18<XMEX>
A99: 2019-12-11 | B99: 114.3988816 | C99: 109.0173747 | D99: 107.2294072 | F99: F1CC15<XMEX>
A100: 2019-12-12 | C100: 109.9522169 | D100: 108.0774828 | F100: FCFE18<XMEX>
A101: 2019-12-13 | B101: 116.9892066 | C101: 109.9601981 | D101: 108.0913132 | F101: FCICK16<XMEX>
A102: 2019-12-16 | B102: 116.6716004 | C102: 110.7461734 | D102: 108.4764145 | F102: FEMSAUB<XMEX>
A103: 2019-12-17 | B103: 115.7480849 | C103: 110.7833033 | D103: 108.8327023 | F103: FEMSAUBD<XMEX>
A104: 2019-12-18 | B104: 119.6658605 | C104: 110.7354161 | D104: 108.4894381 | F104: FFBANCK18<XMEX>
A105: 2019-12-19 | B105: 118.9000077 | C105: 111.2292098 | D105: 109.0183761 | F105: FFLA1CK15<XMEX>
A106: 2019-12-20 | B106: 119.3756042 | C106: 111.779219 | D106: 109.3185353 | F106: FFLA2CK15<XMEX>
A107: 2019-12-23 | B107: 119.4517473 | C107: 111.8760345 | D107: 109.6890377 | F107: FFLA3CK15<XMEX>
A108: 2019-12-24 | B108: 118.8981268 | C108: 111.854173 | D108: 109.5504258 | F108: FFLA4CK15<XMEX>
A109: 2019-12-25 | F109: FHIPO14<XMEX>
A110: 2019-12-26 | B110: 120.0403489 | C110: 112.4277788 | D110: 109.9574253 | F110: FIBRAHD15<XMEX>
A111: 2019-12-27 | B111: 121.3026055 | C111: 112.4315959 | D111: 110.0491288 | F111: FIBRAMQ12<XMEX>
A112: 2019-12-30 | B112: 119.4752074 | C112: 111.7816481 | D112: 109.3456199 | F112: FIBRAPL14<XMEX>
A113: 2019-12-31 | B113: 118.7426663 | C113: 112.1109596 | D113: 109.6387486 | F113: FIBRAUP18<XMEX>
A114: 2020-01-01 | F114: FIHO12<XMEX>
A115: 2020-01-02 | B115: 120.4395997 | C115: 113.0503128 | D115: 110.907923 | F115: FIMMCK09<XMEX>
A116: 2020-01-03 | B116: 121.6322667 | C116: 112.2521922 | D116: 110.009251 | F116: FINAMEXO<XMEX>
A117: 2020-01-06 | B117: 120.3167677 | C117: 112.6488235 | D117: 110.2724138 | F117: FINDEP<XMEX>
A118: 2020-01-07 | B118: 118.4535265 | C118: 112.3330453 | D118: 109.8125513 | F118: FINN13<XMEX>
A119: 2020-01-08 | B119: 118.2927775 | C119: 112.8837485 | D119: 110.4326549 | F119: FINSACK12<XMEX>
A120: 2020-01-09 | B120: 118.3107389 | C120: 113.6350229 | D120: 111.2463849 | F120: FINWSCK15<XMEX>
A121: 2020-01-10 | B121: 119.3182519 | C121: 113.3105695 | D121: 110.7349271 | F121: FISECK10<XMEX>
A122: 2020-01-13 | B122: 118.617976 | C122: 114.1010559 | D122: 111.0548715 | F122: FMTY14<XMEX>
A123: 2020-01-14 | B123: 117.5738975 | C123: 113.9282455 | D123: 111.1801908 | F123: FNOVA17<XMEX>
A124: 2020-01-15 | B124: 117.1275358 | C124: 114.141309 | D124: 111.5280651 | F124: FORTMCK18<XMEX>
A125: 2020-01-16 | B125: 120.8501847 | C125: 115.0962776 | D125: 112.5554371 | F125: FPLUS16<XMEX>
A126: 2020-01-17 | B126: 122.7038427 | C126: 115.5407961 | D126: 112.7492939 | F126: FRAGUAB<XMEX>
A127: 2020-01-20 | B127: 123.2189692 | F127: FSHOP13<XMEX>
A128: 2020-01-21 | B128: 123.6677597 | C128: 115.2343872 | D128: 112.165111 | F128: FUNO11<XMEX>
A129: 2020-01-22 | B129: 123.1147938 | C129: 115.2677001 | D129: 112.1275767 | F129: FVIA16<XMEX>
A130: 2020-01-23 | B130: 123.8706639 | C130: 115.3992165 | D130: 112.0269986 | F130: GAPB<XMEX>
A131: 2020-01-24 | B131: 123.4402907 | C131: 114.3557605 | D131: 111.3725109 | F131: GAPI18-2D<XMEX>
A132: 2020-01-27 | B132: 119.8294723 | C132: 112.5568661 | D132: 109.6286063 | F132: GAPI18-D<XMEX>
A133: 2020-01-28 | B133: 123.9469255 | C133: 113.6884623 | D133: 110.3472135 | F133: Gavack17<XMEX>
A134: 2020-01-29 | B134: 127.8309738 | C134: 113.5899118 | D134: 110.3917783 | F134: GBMESCK16<XMEX>
A135: 2020-01-30 | B135: 126.7433387 | C135: 113.9459429 | D135: 110.8719638 | F135: GBMICK12<XMEX>
A136: 2020-01-31 | B136: 123.0951658 | C136: 111.9284329 | D136: 108.5537882 | F136: GBMO<XMEX>
A137: 2020-02-03 | C137: 112.7404338 | D137: 109.106161 | F137: GCARSOA1<XMEX>
A138: 2020-02-04 | B138: 126.8245297 | C138: 114.4293264 | D138: 110.6729206 | F138: GCC<XMEX>
A139: 2020-02-05 | B139: 126.5632202 | C139: 115.7167296 | D139: 112.5293513 | F139: GDISPI18<XMEX>
A140: 2020-02-06 | B140: 124.7818826 | C140: 116.1015626 | D140: 112.8709634 | F140: GENSEG<XMEX>
A141: 2020-02-07 | B141: 123.3278411 | C141: 115.4745174 | D141: 111.8057882 | F141: GENTERA<XMEX>
A142: 2020-02-10 | B142: 121.581939 | C142: 116.3205252 | D142: 112.4754509 | F142: GEOB<XMEX>
A143: 2020-02-11 | B143: 124.8772795 | C143: 116.5169323 | D143: 112.4736069 | F143: GFAMSAA<XMEX>
A144: 2020-02-12 | B144: 132.5717458 | C144: 117.2699417 | D144: 113.530407 | F144: GFINBURO<XMEX>
A145: 2020-02-13 | B145: 132.3855371 | C145: 117.0787398 | D145: 113.0382351 | F145: GFMULTIO<XMEX>
A146: 2020-02-14 | B146: 132.9173262 | C146: 117.2945794 | D146: 112.9413066 | F146: GFNORTEO<XMEX>
A147: 2020-02-17 | B147: 131.3975178 | F147: GICSAB<XMEX>
A148: 2020-02-18 | B148: 131.9480247 | C148: 116.9520815 | D148: 112.3039918 | F148: GIGANTE<XMEX>
A149: 2020-02-19 | B149: 133.0949376 | C149: 117.5024377 | D149: 112.749025 | F149: GISSAA<XMEX>
A150: 2020-02-20 | B150: 129.8849119 | C150: 117.0541022 | D150: 112.2570835 | F150: GMD<XMEX>
A151: 2020-02-21 | B151: 129.8822435 | C151: 115.8229144 | D151: 111.3828069 | F151: GMEXICOB<XMEX>
A152: 2020-02-24 | B152: 123.8283411 | C152: 111.9412722 | D152: 107.4195759 | F152: GMXT<XMEX>
A153: 2020-02-25 | B153: 121.2374977 | C153: 108.5516887 | D153: 104.0409504 | F153: GNP<XMEX>
A154: 2020-02-26 | B154: 121.9515421 | C154: 108.1415241 | D154: 103.5654518 | F154: GPH1<XMEX>
A155: 2020-02-27 | B155: 118.3088608 | C155: 103.3656399 | D155: 98.99006974 | F155: GPROFUT<XMEX>
A156: 2020-02-28 | B156: 116.4183675 | C156: 102.5137329 | D156: 97.61747431 | F156: GRANDCK18<XMEX>
A157: 2020-03-02 | B157: 120.1145925 | C157: 107.2337487 | D157: 102.5885994 | F157: GRUMAB<XMEX>
A158: 2020-03-03 | B158: 124.6214757 | C158: 104.2196289 | D158: 99.56929671 | F158: GSANBORB-1<XMEX>
A159: 2020-03-04 | B159: 127.5084219 | C159: 108.6179674 | D159: 104.0774475 | F159: GVIVA<BIVA>
A160: 2020-03-05 | B160: 121.4634402 | C160: 104.9334263 | D160: 100.3525228 | F160: HCITY<XMEX>
A161: 2020-03-06 | B161: 117.1308332 | C161: 103.1439011 | D161: 99.3671032 | F161: HERDEZ<XMEX>
A162: 2020-03-09 | B162: 102.8693776 | C162: 95.3080919 | D162: 91.63065627 | F162: HIMEXSAA<XMEX>
A163: 2020-03-10 | B163: 106.3188757 | C163: 100.0159624 | D163: 96.11456531 | F163: HIMEXSAB<XMEX>
A164: 2020-03-11 | B164: 107.203337 | C164: 95.12834126 | D164: 90.48657063 | F164: HOMEX<XMEX>
A165: 2020-03-12 | B165: 94.49008367 | C165: 86.08042974 | D165: 81.44837093 | F165: HOTEL<XMEX>
A166: 2020-03-13 | B166: 99.44219675 | C166: 94.07551609 | D166: 89.0757878 | F166: ICA<XMEX>
A167: 2020-03-16 | C167: 82.80084809 | D167: 77.56009331 | F167: ICHB<XMEX>
A168: 2020-03-17 | B168: 98.17803258 | C168: 87.76515822 | D168: 81.5895952 | F168: ICUA2CK14<XMEX>
A169: 2020-03-18 | B169: 94.46489717 | C169: 83.21621781 | D169: 76.44751037 | F169: ICUADCK10<XMEX>
A170: 2020-03-19 | B170: 93.73543245 | C170: 83.60799092 | D170: 77.17080453 | F170: IDEALB-1<XMEX>
A171: 2020-03-20 | B171: 90.99463532 | C171: 79.98278836 | D171: 73.66244172 | F171: IENOVA<XMEX>
A172: 2020-03-23 | B172: 84.70614121 | C172: 77.63978388 | D172: 71.42632672 | F172: IGNIACK15<XMEX>
A173: 2020-03-24 | B173: 87.4049957 | C173: 84.9245429 | D173: 79.54395625 | F173: IGS3CK17<XMEX>
A174: 2020-03-25 | B174: 92.74973707 | C174: 85.90414919 | D174: 81.448102 | F174: IGSCK11<XMEX>
A175: 2020-03-26 | B175: 96.78898141 | C175: 91.26578457 | D175: 86.64074482 | F175: IGSCK11-2<XMEX>
A176: 2020-03-27 | B176: 89.46459599 | C176: 88.19128522 | D176: 83.1240069 | F176: INFRACK15<XMEX>
A177: 2020-03-30 | B177: 86.98307528 | C177: 91.14710751 | D177: 85.77753259 | F177: INFRACK16<XMEX>
A178: 2020-03-31 | B178: 88.74819909 | C178: 89.68758784 | D178: 84.20116852 | F178: INFRACK17<XMEX>
A179: 2020-04-01 | B179: 83.82694275 | C179: 85.72856265 | D179: 80.4606078 | F179: INFRACK18<XMEX>
A180: 2020-04-02 | B180: 85.34359042 | C180: 87.68569317 | D180: 82.26598109 | F180: INFRAEX18<XMEX>
A181: 2020-04-03 | B181: 81.15880881 | C181: 86.35838391 | D181: 80.87943996 | F181: INFRAEX18-2<XMEX>
A182: 2020-04-06 | B182: 85.43887928 | C182: 92.43208167 | D182: 87.13180266 | F182: INGEALB<XMEX>
A183: 2020-04-07 | B183: 88.30699188 | C183: 92.28390885 | D183: 87.03141664 | F183: INMOBCK18<XMEX>
A184: 2020-04-08 | B184: 85.8935557 | C184: 95.42676896 | D184: 90.02690023 | F184: INVEXA<XMEX>
A185: 2020-04-09 | C185: 96.80925265 | D185: 91.12488436 | F185: JAVER<XMEX>
A186: 2020-04-10 | F186: KIMBERA<XMEX>
A187: 2020-04-13 | B187: 83.78512353 | C187: 95.8310344 | D187: 89.86247153 | F187: KIMBERB<XMEX>
A188: 2020-04-14 | B188: 83.66330047 | C188: 98.76083102 | D188: 92.00999481 | F188: KKR2PI18D<XMEX>
A189: 2020-04-15 | B189: 79.22966756 | C189: 96.58508486 | D189: 90.29882226 | F189: KKRPI18-2D<XMEX>
A190: 2020-04-16 | B190: 78.55341407 | C190: 97.14689236 | D190: 90.42686919 | F190: KKRPI18D<XMEX>
A191: 2020-04-17 | B191: 82.05026549 | C191: 99.74980654 | D191: 93.13460256 | F191: KOFUBL<XMEX>
A192: 2020-04-20 | B192: 81.1919648 | C192: 97.96618051 | D192: 90.86006964 | F192: KUOA<XMEX>
A193: 2020-04-21 | B193: 79.6839878 | C193: 94.96108295 | D193: 88.43374753 | F193: KUOB<XMEX>
A194: 2020-04-22 | B194: 80.72273196 | C194: 97.13856415 | D194: 90.18921594 | F194: LABB<XMEX>
A195: 2020-04-23 | B195: 80.30774398 | C195: 97.08616579 | D195: 90.34073621 | F195: LACOMERUB<XMEX>
A196: 2020-04-24 | B196: 81.21849577 | C196: 98.43741867 | D196: 91.33964053 | F196: LACOMERUBC<XMEX>
A197: 2020-04-27 | B197: 81.72581836 | C197: 99.88583405 | D197: 92.71696136 | F197: LALAB<XMEX>
A198: 2020-04-28 | B198: 84.30468769 | C198: 99.36219754 | D198: 92.5931404 | F198: LAMOSA<XMEX>
A199: 2020-04-29 | B199: 90.11786717 | C199: 102.0036297 | D199: 94.63816467 | F199: LASEG<XMEX>
A200: 2020-04-30 | B200: 90.51264418 | C200: 101.0639295 | D200: 93.53119074 | F200: LEXIIPI18D<XMEX>
A201: 2020-05-01 | C201: 98.22817227 | D201: 91.1414809 | F201: LEXPI18D<XMEX>
... 101 more rows
